Workbook

Sheet Patient-level outcomes
B9: Baseline scenario | F9: Scenario 1 | I9: Scenario 2
B10: Baseline - Meet no targets | F10: Meet BP target only | I10: Meet all three targets
A12: FALSE
A13: FALSE
A14: FALSE
B18: Patient profile | C18: Input | D18: Unit | F18: FALSE | G18: FALSE | H18: TRUE | I18: TRUE | J18: TRUE | K18: TRUE
B19: Gender | C19: M
B20: Ethnicity | C20: White Caucasian
B21: Age (current) | C21: 65 | D21: years
B22: Duration of diabetes | C22: 7 | D22: years
B23: Current smoker | C23: N
B25: Biomarkers
B26: White blood cell count | C26: 7 | D26: x 109/L
B27: Haemoglobin | C27: 14 | D27: g/dL
B28: Heart rate | C28: 78 | D28: bpm
B29: BMI | C29: 31 | D29: kg/m2
B30: eGFR (186-MDRD equation) | C30: 82 | D30: mL/min/1.73m2
B31: Serum creatinine (optional; used to calculate eGFR if not available) | D31: µmol/L
B33: History of complication
B34: Albuminuria | C34: N
B35: Atrial fibrillation | C35: N
B36: Peripheral aterial disease | C36: N
B37: Myocardial infarction | C37: N
B38: Stroke | C38: N
B39: Ischemic heart disease | C39: N
B40: Heart failure | C40: N
B41: Amputation | C41: N
B42: Blind | C42: N
B43: Renal failure | C43: N
B44: Ulcer | C44: N

Sheet baseline.ind (hidden)
A1: VAR | B1: Dropdown list | F1: VAL_baseline | G1: VAL_scenario | H1: VAL_ideal
A2: (Intercept) | F2: 1 | G2: 1 | H2: 1
A3: genderM | B3: M | C3: F | F3: =IF(pat_gender = "M", 1,0) -> 1 | G3: =IF(pat_gender = "M", 1,0) -> 1 | H3: =IF(pat_gender = "M", 1,0) -> 1
A4: as.factor(ethnicity)2 | B4: White Caucasian | C4: Afro-Caribbean | D4: South Asian | F4: =IF(pat_eth = "Afro-Caribbean", 1, 0) -> 0 | G4: =IF(pat_eth = "Afro-Caribbean", 1, 0) -> 0 | H4: =IF(pat_eth = "Afro-Caribbean", 1, 0) -> 0
A5: as.factor(ethnicity)3 | F5: =IF(pat_eth = "South Asian", 1, 0) -> 0 | G5: =IF(pat_eth = "South Asian", 1, 0) -> 0 | H5: =IF(pat_eth = "South Asian", 1, 0) -> 0
A6: age.diag | F6: =pat_age-pat_duration -> 58 | G6: =pat_age-pat_duration -> 58 | H6: =pat_age-pat_duration -> 58
A7: I(age.diag^2) | F7: =(pat_age-pat_duration)^2 -> 3364 | G7: =(pat_age-pat_duration)^2 -> 3364 | H7: =(pat_age-pat_duration)^2 -> 3364
A8: I(age.diag^3) | F8: =(pat_age-pat_duration)^3 -> 195112 | G8: =(pat_age-pat_duration)^3 -> 195112 | H8: =(pat_age-pat_duration)^3 -> 195112
A9: duration | F9: =pat_duration -> 7 | G9: =pat_duration -> 7 | H9: =pat_duration -> 7
A10: smokerY | B10: Y | C10: N | F10: =IF(pat_smok = "Y", 1,0) -> 0 | G10: =IF(pat_smok = "Y", 1,0) -> 0 | H10: =IF(pat_smok = "Y", 1,0) -> 0
A11: albY | B11: Y | C11: N | F11: =IF(pat_alb = "Y", 1,0) -> 0 | G11: =IF(pat_alb = "Y", 1,0) -> 0 | H11: =IF(pat_alb = "Y", 1,0) -> 0
A12: wbc | F12: =pat_wbc -> 7 | G12: =pat_wbc -> 7 | H12: =pat_wbc -> 7
A13: haem | F13: =pat_haem -> 14 | G13: =pat_haem -> 14 | H13: =pat_haem -> 14
A14: hrate | F14: =pat_hr -> 78 | G14: =pat_hr -> 78 | H14: =pat_hr -> 78
A15: bmi | F15: =pat_bmi -> 31 | G15: =pat_bmi -> 31 | H15: =pat_bmi -> 31
A16: atfib1ltY | B16: Y | C16: N | F16: =IF(pat_af = "Y", 1,0) -> 0 | G16: =IF(pat_af = "Y", 1,0) -> 0 | H16: =IF(pat_af = "Y", 1,0) -> 0
A17: pvd1ltY | B17: Y | C17: N | F17: =IF(pat_pad = "Y", 1,0) -> 0 | G17: =IF(pat_pad = "Y", 1,0) -> 0 | H17: =IF(pat_pad = "Y", 1,0) -> 0
A18: ihd1ltY | B18: Y | C18: N | F18: =IF(pat_ihd = "Y", 1,0) -> 0 | G18: =IF(pat_ihd = "Y", 1,0) -> 0 | H18: =IF(pat_ihd = "Y", 1,0) -> 0
A19: hf1ltY | B19: Y | C19: N | F19: =IF(pat_hf = "Y", 1,0) -> 0 | G19: =IF(pat_hf = "Y", 1,0) -> 0 | H19: =IF(pat_hf = "Y", 1,0) -> 0
A20: amp1ltY | B20: Y | C20: N | F20: =IF(pat_amp = "Y", 1,0) -> 0 | G20: =IF(pat_amp = "Y", 1,0) -> 0 | H20: =IF(pat_amp = "Y", 1,0) -> 0
A21: blind1ltY | B21: Y | C21: N | F21: =IF(pat_blind = "Y", 1,0) -> 0 | G21: =IF(pat_blind = "Y", 1,0) -> 0 | H21: =IF(pat_blind = "Y", 1,0) -> 0
A22: renal1ltY | B22: Y | C22: N | F22: =IF(pat_renal = "Y", 1,0) -> 0 | G22: =IF(pat_renal = "Y", 1,0) -> 0 | H22: =IF(pat_renal = "Y", 1,0) -> 0 | XEY22: FALSE
A23: stroke1ltY | B23: Y | C23: N | F23: =IF(pat_stroke = "Y", 1,0) -> 0 | G23: =IF(pat_stroke = "Y", 1,0) -> 0 | H23: =IF(pat_stroke = "Y", 1,0) -> 0
A24: mi1ltY | B24: Y | C24: N | F24: =IF(pat_mi = "Y", 1,0) -> 0 | G24: =IF(pat_mi = "Y", 1,0) -> 0 | H24: =IF(pat_mi = "Y", 1,0) -> 0
A25: ulcer1ltY | B25: Y | C25: N | F25: =IF(pat_ulcer = "Y", 1,0) -> 0 | G25: =IF(pat_ulcer = "Y", 1,0) -> 0 | H25: =IF(pat_ulcer = "Y", 1,0) -> 0
A26: target2 HbA1c only | B26: <=58 | F26: =IF(AND(pat_totaltarget =1, check_hba1c), 1, 0) -> 0 | G26: =IF(AND(check_hba1c_s1, pat_s1_totaltarget=1),1,0) -> 0 | H26: =IF(AND(check_hba1c_s2, pat_s2_totaltarget=1),1,0) -> 0
A27: target3 CHOL only | B27: <5 | F27: =IF(AND(pat_totaltarget =1, check_chol), 1, 0) -> 0 | G27: =IF(AND(check_chol_s1, pat_s1_totaltarget=1),1,0) -> 0 | H27: =IF(AND(check_chol_s2, pat_s2_totaltarget=1),1,0) -> 0
A28: target4 SBP only | B28: <=140 | F28: =IF(AND(pat_totaltarget =1, check_sbp), 1, 0) -> 0 | G28: =IF(AND(check_sbp_s1, pat_s1_totaltarget=1),1,0) -> 1 | H28: =IF(AND(check_sbp_s2, pat_s2_totaltarget=1),1,0) -> 0 | XEZ28: TRUE
A29: target5 HbA1c + CHOL only | F29: =IF(AND(pat_totaltarget =2, check_hba1c, check_chol), 1, 0) -> 0 | G29: =IF(AND(check_hba1c_s1, check_chol_s1, pat_s1_totaltarget=2),1,0) -> 0 | H29: =IF(AND(check_hba1c_s2, check_chol_s2, pat_s2_totaltarget=2),1,0) -> 0
A30: target6 HbA1c + SBP only | F30: =IF(AND(pat_totaltarget =2, check_hba1c, check_sbp), 1, 0) -> 0 | G30: =IF(AND(check_hba1c_s1, check_sbp_s1, pat_s1_totaltarget=2),1,0) -> 0 | H30: =IF(AND(check_hba1c_s2, check_sbp_s2, pat_s2_totaltarget=2),1,0) -> 0
A31: target7 CHOL + SBP only | F31: =IF(AND(pat_totaltarget =2, check_chol, check_sbp), 1, 0) -> 0 | G31: =IF(AND(check_chol_s1, check_sbp_s1, pat_s1_totaltarget=2),1,0) -> 0 | H31: =IF(AND(check_chol_s2, check_sbp_s2, pat_s2_totaltarget=2),1,0) -> 0
A32: target8 All three | F32: =IF(pat_totaltarget =3, 1, 0) -> 0 | G32: =IF(pat_s1_totaltarget=3,1,0) -> 0 | H32: =IF(pat_s2_totaltarget=3,1,0) -> 1
A33: egfr:egfr.gt60FALSE | F33: =IF(pat_egfr > 60, 0, 1)*pat_egfr -> 0 | G33: =IF(pat_egfr > 60, 0, 1)*pat_egfr -> 0 | H33: =IF(pat_egfr > 60, 0, 1)*pat_egfr -> 0
A34: egfr:egfr.gt60TRUE | F34: =IF(pat_egfr > 60, 1, 0)*pat_egfr -> 82 | G34: =IF(pat_egfr > 60, 1, 0)*pat_egfr -> 82 | H34: =IF(pat_egfr > 60, 1, 0)*pat_egfr -> 82 | XEU34: FALSE
A36: total targets | F36: =SUM(IF(check_hba1c,1,0),IF(check_chol,1,0),IF(check_sbp,1,0)) -> 0 | G36: =SUM(IF(check_hba1c_s1,1,0),IF(check_chol_s1,1,0),IF(check_sbp_s1,1,0)) -> 1 | H36: =SUM(IF(check_hba1c_s2,1,0),IF(check_chol_s2,1,0),IF(check_sbp_s2,1,0)) -> 3
... 2 more rows

Sheet output.ind (hidden)
E7: =pat_name -> Baseline - Meet no targets | F7: =pat_name_s1 -> Meet BP target only | G7: =pat_name_s2 -> Meet all three targets | K7: label_s1 | L7: label_s2
C8: Total cost | D8: Lifetime | E8: =pat_cost_70 -> 37679.99998 | F8: =pat_s1_cost_70 -> 36922.12697 | G8: =pat_s2_cost_70 -> 36777.26693 | K8: =TEXT(pat_s1_cost_70,"#,###")& " ("& TEXT(pat_s1_cost_70-pat_cost_70, "+#,##0;-#,##0") &")" -> 36,922 (-758) | L8: =TEXT(pat_s2_cost_70,"#,###")& " ("& TEXT(pat_s2_cost_70-pat_cost_70, "+#,##0;-#,##0") &")" -> 36,777 (-903)
D9: 10-year | E9: =pat_cost_10 -> 18516.00441 | F9: =pat_s1_cost_10 -> 18000.63295 | G9: =pat_s2_cost_10 -> 17455.77173 | K9: =TEXT(pat_s1_cost_10,"#,###")& " ("& TEXT(pat_s1_cost_10-pat_cost_10, "+#,##0;-#,##0") &")" -> 18,001 (-515) | L9: =TEXT(pat_s2_cost_10,"#,###")& " ("& TEXT(pat_s2_cost_10-pat_cost_10, "+#,##0;-#,##0") &")" -> 17,456 (-1,060)
E11: =pat_name -> Baseline - Meet no targets | F11: =pat_name_s1 -> Meet BP target only | G11: =pat_name_s2 -> Meet all three targets
C12: LYs | D12: Lifetime | E12: =pat_lifeyr_70 -> 14.95535655 | F12: =pat_s1_lifeyr_70 -> 15.52318919 | G12: =pat_s2_lifeyr_70 -> 16.74982901 | K12: =ROUND(pat_s1_lifeyr_70,1)& " ("& TEXT(pat_s1_lifeyr_70-pat_lifeyr_70,"+0.00;-0.00") &")" -> 15.5 (+0.57) | L12: =ROUND(pat_s2_lifeyr_70,1)& " ("& TEXT(pat_s2_lifeyr_70-pat_lifeyr_70,"+0.00;-0.00") &")" -> 16.7 (+1.79)
D13: 10-year | E13: =pat_lifeyr_10 -> 8.423573787 | F13: =pat_s1_lifeyr_10 -> 8.59266474 | G13: =pat_s2_lifeyr_10 -> 8.869505219 | K13: =ROUND(pat_s1_lifeyr_10,1)& " ("& TEXT(pat_s1_lifeyr_10-pat_lifeyr_10,"+0.00;-0.00") &")" -> 8.6 (+0.17) | L13: =ROUND(pat_s2_lifeyr_10,1)& " ("& TEXT(pat_s2_lifeyr_10-pat_lifeyr_10,"+0.00;-0.00") &")" -> 8.9 (+0.45)
C14: QALYs | D14: Lifetime | E14: =pat_qaly_70 -> 11.68372234 | F14: =pat_s1_qaly_70 -> 12.18999125 | G14: =pat_s2_qaly_70 -> 13.24325657 | K14: =ROUND(pat_s1_qaly_70,1)& " ("& TEXT(pat_s1_qaly_70-pat_qaly_70,"+0.00;-0.00") &")" -> 12.2 (+0.51) | L14: =ROUND(pat_s2_qaly_70,1)& " ("& TEXT(pat_s2_qaly_70-pat_qaly_70,"+0.00;-0.00") &")" -> 13.2 (+1.56)
D15: 10-year | E15: =pat_qaly_10 -> 6.657119623 | F15: =pat_s1_qaly_10 -> 6.81988213 | G15: =pat_s2_qaly_10 -> 7.072928526 | K15: =ROUND(pat_s1_qaly_10,1)& " ("& TEXT(pat_s1_qaly_10-pat_qaly_10,"+0.00;-0.00") &")" -> 6.8 (+0.16) | L15: =ROUND(pat_s2_qaly_10,1)& " ("& TEXT(pat_s2_qaly_10-pat_qaly_10,"+0.00;-0.00") &")" -> 7.1 (+0.42)
E17: =pat_name -> Baseline - Meet no targets | F17: =pat_name_s1 -> Meet BP target only | G17: =pat_name_s2 -> Meet all three targets
C18: All-cause death | D18: Lifetime | E18: =pat_alldeath_70 -> 99.9953917 | F18: =pat_s1_alldeath_70 -> 99.99539128 | G18: =pat_s2_alldeath_70 -> 99.99536627 | K18: =ROUND(pat_s1_alldeath_70,1)& " ("& TEXT(pat_s1_alldeath_70-pat_alldeath_70,"+0.0;-0.0") &")" -> 100 (-0.0) | L18: =ROUND(pat_s2_alldeath_70,1)& " ("& TEXT(pat_s2_alldeath_70-pat_alldeath_70,"+0.0;-0.0") &")" -> 100 (-0.0)
C19: All-cause death | D19: 10-year | E19: =pat_alldeath_10 -> 31.4627704 | F19: =pat_s1_alldeath_10 -> 29.44741969 | G19: =pat_s2_alldeath_10 -> 25.44459187 | K19: =ROUND(pat_s1_alldeath_10,1)& " ("& TEXT(pat_s1_alldeath_10-pat_alldeath_10,"+0.0;-0.0") &")" -> 29.4 (-2.0) | L19: =ROUND(pat_s2_alldeath_10,1)& " ("& TEXT(pat_s2_alldeath_10-pat_alldeath_10,"+0.0;-0.0") &")" -> 25.4 (-6.0)
C20: CV death | D20: Lifetime | E20: =pat_cvddeath_70 -> 40.46887936 | F20: =pat_s1_cvddeath_70 -> 37.44025441 | G20: =pat_s2_cvddeath_70 -> 30.29182538 | K20: =ROUND(pat_s1_cvddeath_70,1)& " ("& TEXT(pat_s1_cvddeath_70-pat_cvddeath_70,"+0.0;-0.0") &")" -> 37.4 (-3.0) | L20: =ROUND(pat_s2_cvddeath_70,1)& " ("& TEXT(pat_s2_cvddeath_70-pat_cvddeath_70,"+0.0;-0.0") &")" -> 30.3 (-10.2)
D21: 10-year | E21: =pat_cvddeath_10 -> 15.74099585 | F21: =pat_s1_cvddeath_10 -> 13.93838675 | G21: =pat_s2_cvddeath_10 -> 10.31492991 | K21: =ROUND(pat_s1_cvddeath_10,1)& " ("& TEXT(pat_s1_cvddeath_10-pat_cvddeath_10,"+0.0;-0.0") &")" -> 13.9 (-1.8) | L21: =ROUND(pat_s2_cvddeath_10,1)& " ("& TEXT(pat_s2_cvddeath_10-pat_cvddeath_10,"+0.0;-0.0") &")" -> 10.3 (-5.4)
E23: =pat_name -> Baseline - Meet no targets | F23: =pat_name_s1 -> Meet BP target only | G23: =pat_name_s2 -> Meet all three targets
C24: Myocardial infarction | D24: Lifetime | E24: =pat_mi_70 -> 28.53930048 | F24: =pat_s1_mi_70 -> 27.00454515 | G24: =pat_s2_mi_70 -> 20.3689345 | K24: =ROUND(pat_s1_mi_70,1)& " ("& TEXT(pat_s1_mi_70-pat_mi_70,"+0.0;-0.0") &")" -> 27 (-1.5) | L24: =ROUND(pat_s2_mi_70,1)& " ("& TEXT(pat_s2_mi_70-pat_mi_70,"+0.0;-0.0") &")" -> 20.4 (-8.2)
D25: 10-year | E25: =pat_mi_10 -> 15.47822817 | F25: =pat_s1_mi_10 -> 14.24912196 | G25: =pat_s2_mi_10 -> 10.07590912 | K25: =ROUND(pat_s1_mi_10,1)& " ("& TEXT(pat_s1_mi_10-pat_mi_10,"+0.0;-0.0") &")" -> 14.2 (-1.2) | L25: =ROUND(pat_s2_mi_10,1)& " ("& TEXT(pat_s2_mi_10-pat_mi_10,"+0.0;-0.0") &")" -> 10.1 (-5.4)
C26: Stroke | D26: Lifetime | E26: =pat_stroke_70 -> 17.30813358 | F26: =pat_s1_stroke_70 -> 13.0220405 | G26: =pat_s2_stroke_70 -> 9.735044218 | K26: =ROUND(pat_s1_stroke_70,1)& " ("& TEXT(pat_s1_stroke_70-pat_stroke_70,"+0.0;-0.0") &")" -> 13 (-4.3) | L26: =ROUND(pat_s2_stroke_70,1)& " ("& TEXT(pat_s2_stroke_70-pat_stroke_70,"+0.0;-0.0") &")" -> 9.7 (-7.6)
D27: 10-year | E27: =pat_stroke_10 -> 8.058627034 | F27: =pat_s1_stroke_10 -> 5.830942183 | G27: =pat_s2_stroke_10 -> 4.122832046 | K27: =ROUND(pat_s1_stroke_10,1)& " ("& TEXT(pat_s1_stroke_10-pat_stroke_10,"+0.0;-0.0") &")" -> 5.8 (-2.2) | L27: =ROUND(pat_s2_stroke_10,1)& " ("& TEXT(pat_s2_stroke_10-pat_stroke_10,"+0.0;-0.0") &")" -> 4.1 (-3.9)
C28: Heart failure | D28: Lifetime | E28: =pat_hf_70 -> 9.072336187 | F28: =pat_s1_hf_70 -> 9.458170692 | G28: =pat_s2_hf_70 -> 8.832254987 | K28: =ROUND(pat_s1_hf_70,1)& " ("& TEXT(pat_s1_hf_70-pat_hf_70,"+0.0;-0.0") &")" -> 9.5 (+0.4) | L28: =ROUND(pat_s2_hf_70,1)& " ("& TEXT(pat_s2_hf_70-pat_hf_70,"+0.0;-0.0") &")" -> 8.8 (-0.2)
D29: 10-year | E29: =pat_hf_10 -> 4.030000102 | F29: =pat_s1_hf_10 -> 4.092626213 | G29: =pat_s2_hf_10 -> 3.643389401 | K29: =ROUND(pat_s1_hf_10,1)& " ("& TEXT(pat_s1_hf_10-pat_hf_10,"+0.0;-0.0") &")" -> 4.1 (+0.1) | L29: =ROUND(pat_s2_hf_10,1)& " ("& TEXT(pat_s2_hf_10-pat_hf_10,"+0.0;-0.0") &")" -> 3.6 (-0.4)
C30: Ischaemic heart disease | D30: Lifetime | E30: =pat_ihd_70 -> 20.63300771 | F30: =pat_s1_ihd_70 -> 19.46250564 | G30: =pat_s2_ihd_70 -> 16.01206435 | K30: =ROUND(pat_s1_ihd_70,1)& " ("& TEXT(pat_s1_ihd_70-pat_ihd_70,"+0.0;-0.0") &")" -> 19.5 (-1.2) | L30: =ROUND(pat_s2_ihd_70,1)& " ("& TEXT(pat_s2_ihd_70-pat_ihd_70,"+0.0;-0.0") &")" -> 16 (-4.6)
D31: 10-year | E31: =pat_ihd_10 -> 10.48580831 | F31: =pat_s1_ihd_10 -> 9.621863399 | G31: =pat_s2_ihd_10 -> 7.513676206 | K31: =ROUND(pat_s1_ihd_10,1)& " ("& TEXT(pat_s1_ihd_10-pat_ihd_10,"+0.0;-0.0") &")" -> 9.6 (-0.9) | L31: =ROUND(pat_s2_ihd_10,1)& " ("& TEXT(pat_s2_ihd_10-pat_ihd_10,"+0.0;-0.0") &")" -> 7.5 (-3.0)
E33: =pat_name -> Baseline - Meet no targets | F33: =pat_name_s1 -> Meet BP target only | G33: =pat_name_s2 -> Meet all three targets
C34: Blindness | D34: Lifetime | E34: =pat_blind_70 -> 6.90614884 | F34: =pat_s1_blind_70 -> 6.301772755 | G34: =pat_s2_blind_70 -> 4.799924019 | K34: =ROUND(pat_s1_blind_70,1)& " ("& TEXT(pat_s1_blind_70-pat_blind_70,"+0.0;-0.0") &")" -> 6.3 (-0.6) | L34: =ROUND(pat_s2_blind_70,1)& " ("& TEXT(pat_s2_blind_70-pat_blind_70,"+0.0;-0.0") &")" -> 4.8 (-2.1)
D35: 10-year | E35: =pat_blind_10 -> 3.802229755 | F35: =pat_s1_blind_10 -> 3.40807005 | G35: =pat_s2_blind_10 -> 2.49013244 | K35: =ROUND(pat_s1_blind_10,1)& " ("& TEXT(pat_s1_blind_10-pat_blind_10,"+0.0;-0.0") &")" -> 3.4 (-0.4) | L35: =ROUND(pat_s2_blind_10,1)& " ("& TEXT(pat_s2_blind_10-pat_blind_10,"+0.0;-0.0") &")" -> 2.5 (-1.3)
C36: Amputation | D36: Lifetime | E36: =pat_amp_70 -> 4.742801595 | F36: =pat_s1_amp_70 -> 4.315472806 | G36: =pat_s2_amp_70 -> 3.044319716 | K36: =ROUND(pat_s1_amp_70,1)& " ("& TEXT(pat_s1_amp_70-pat_amp_70,"+0.0;-0.0") &")" -> 4.3 (-0.4) | L36: =ROUND(pat_s2_amp_70,1)& " ("& TEXT(pat_s2_amp_70-pat_amp_70,"+0.0;-0.0") &")" -> 3 (-1.7)
D37: 10-year | E37: =pat_amp_10 -> 1.677688118 | F37: =pat_s1_amp_10 -> 1.480082727 | G37: =pat_s2_amp_10 -> 1.000270854 | K37: =ROUND(pat_s1_amp_10,1)& " ("& TEXT(pat_s1_amp_10-pat_amp_10,"+0.0;-0.0") &")" -> 1.5 (-0.2) | L37: =ROUND(pat_s2_amp_10,1)& " ("& TEXT(pat_s2_amp_10-pat_amp_10,"+0.0;-0.0") &")" -> 1 (-0.7)
C38: Ulcer | D38: Lifetime | E38: =pat_ulcer_70 -> 4.592389231 | F38: =pat_s1_ulcer_70 -> 4.792097083 | G38: =pat_s2_ulcer_70 -> 3.782338515 | K38: =ROUND(pat_s1_ulcer_70,1)& " ("& TEXT(pat_s1_ulcer_70-pat_ulcer_70,"+0.0;-0.0") &")" -> 4.8 (+0.2) | L38: =ROUND(pat_s2_ulcer_70,1)& " ("& TEXT(pat_s2_ulcer_70-pat_ulcer_70,"+0.0;-0.0") &")" -> 3.8 (-0.8)
D39: 10-year | E39: =pat_ulcer_10 -> 2.621544057 | F39: =pat_s1_ulcer_10 -> 2.693919072 | G39: =pat_s2_ulcer_10 -> 2.029556594 | K39: =ROUND(pat_s1_ulcer_10,1)& " ("& TEXT(pat_s1_ulcer_10-pat_ulcer_10,"+0.0;-0.0") &")" -> 2.7 (+0.1) | L39: =ROUND(pat_s2_ulcer_10,1)& " ("& TEXT(pat_s2_ulcer_10-pat_ulcer_10,"+0.0;-0.0") &")" -> 2 (-0.6)
C40: Renal failure | D40: Lifetime | E40: =pat_renal_70 -> 0.3487893072 | F40: =pat_s1_renal_70 -> 0.3013545836 | G40: =pat_s2_renal_70 -> 0.2275181307 | K40: =ROUND(pat_s1_renal_70,1)& " ("& TEXT(pat_s1_renal_70-pat_renal_70,"+0.0;-0.0") &")" -> 0.3 (-0.0) | L40: =ROUND(pat_s2_renal_70,1)& " ("& TEXT(pat_s2_renal_70-pat_renal_70,"+0.0;-0.0") &")" -> 0.2 (-0.1)
D41: 10-year | E41: =pat_renal_10 -> 0.1814783224 | F41: =pat_s1_renal_10 -> 0.1546142743 | G41: =pat_s2_renal_10 -> 0.1123786462 | K41: =ROUND(pat_s1_renal_10,1)& " ("& TEXT(pat_s1_renal_10-pat_renal_10,"+0.0;-0.0") &")" -> 0.2 (-0.0) | L41: =ROUND(pat_s2_renal_10,1)& " ("& TEXT(pat_s2_renal_10-pat_renal_10,"+0.0;-0.0") &")" -> 0.1 (-0.1)
E43: Scenario: Baseline | F43: =pat_name_s1 -> Meet BP target only | G43: =pat_name_s2 -> Meet all three targets
C44: Lifetime | D44: Blindness | E44: =blind_70 -> 6.193814404 | F44: =s1_blind_70 -> 5.772044366 | G44: =s2_blind_70 -> 5.253118417
D45: Amputation | E45: =amp_70 -> 4.470966593 | F45: =s1_amp_70 -> 4.097210584 | G45: =s2_amp_70 -> 3.634060686
D46: Ulcer | E46: =ulcer_70 -> 3.343865487 | F46: =s1_ulcer_70 -> 3.236181512 | G46: =s2_ulcer_70 -> 3.02982596
D47: Renal failure | E47: =renal_70 -> 1.668631415 | F47: =s1_renal_70 -> 1.568961944 | G47: =s2_renal_70 -> 1.456716582
C48: 10-year | D48: Blindness | E48: =blind_10 -> 3.667129589 | F48: =s1_blind_10 -> 3.384352444 | G48: =s2_blind_10 -> 3.040813688
D49: Amputation | E49: =amp_10 -> 1.710833728 | F49: =s1_amp_10 -> 1.550569704 | G49: =s2_amp_10 -> 1.358284409
D50: Ulcer | E50: =ulcer_10 -> 2.000556721 | F50: =s1_ulcer_10 -> 1.919525893 | G50: =s2_ulcer_10 -> 1.773434489
D51: Renal failure | E51: =renal_10 -> 0.9631609946 | F51: =s1_renal_10 -> 0.8970398744 | G51: =s2_renal_10 -> 0.8222534301

Sheet effect.ind (hidden)
B1: VAR | C1: beta | D1: outcome | F1: OUTCOME_baseline | G1: OUTCOME_s1 | H1: OUTCOME_s2
A2: 1 | B2: (Intercept) | C2: 18.20379828 | D2: cost_70 | F2: =EXP(SUMPRODUCT(C2:C34, pat_baseline)) -> 37679.99998 | G2: =EXP(SUMPRODUCT(C2:C34, pat_s1)) -> 36922.12697 | H2: =EXP(SUMPRODUCT(C2:C34, pat_s2)) -> 36777.26693
A3: 2 | B3: genderM | C3: -0.1005790108 | D3: cost_70
A4: 3 | B4: as.factor(ethnicity)2 | C4: 0.03935258482 | D4: cost_70
A5: 4 | B5: as.factor(ethnicity)3 | C5: 0.01925658365 | D5: cost_70
A6: 5 | B6: age.diag | C6: -0.3280866254 | D6: cost_70
A7: 6 | B7: I(age.diag^2) | C7: 0.005678531571 | D7: cost_70
A8: 7 | B8: I(age.diag^3) | C8: -3.581505706e-05 | D8: cost_70
A9: 8 | B9: duration | C9: -0.04349450162 | D9: cost_70
A10: 9 | B10: smokerY | C10: -0.1501885886 | D10: cost_70
A11: 10 | B11: albY | C11: -0.06963445491 | D11: cost_70
A12: 11 | B12: wbc | C12: -0.01923165889 | D12: cost_70
A13: 12 | B13: haem | C13: -0.006030011785 | D13: cost_70
A14: 13 | B14: hrate | C14: -0.000372398982 | D14: cost_70
A15: 14 | B15: bmi | C15: -0.002162120047 | D15: cost_70
A16: 15 | B16: atfib1ltY | C16: -0.2147996265 | D16: cost_70
A17: 16 | B17: pvd1ltY | C17: -0.07955691481 | D17: cost_70
A18: 17 | B18: ihd1ltY | C18: 0.4945277442 | D18: cost_70
A19: 18 | B19: hf1ltY | C19: 0.2900819436 | D19: cost_70
A20: 19 | B20: amp1ltY | C20: 0.3064037095 | D20: cost_70
A21: 20 | B21: blind1ltY | C21: 0.2649317951 | D21: cost_70
A22: 21 | B22: renal1ltY | C22: 1.131495571 | D22: cost_70
A23: 22 | B23: stroke1ltY | C23: 0.228619763 | D23: cost_70
A24: 23 | B24: mi1ltY | C24: 0.4147190196 | D24: cost_70
A25: 24 | B25: ulcer1ltY | C25: -0.186487119 | D25: cost_70
A26: 25 | B26: target2 HbA1c only | C26: -0.02579802562 | D26: cost_70
A27: 26 | B27: target3 CHOL only | C27: -0.007659632427 | D27: cost_70
A28: 27 | B28: target4 SBP only | C28: -0.02031843077 | D28: cost_70
A29: 28 | B29: target5 HbA1c + CHOL only | C29: -0.02597909506 | D29: cost_70
A30: 29 | B30: target6 HbA1c + SBP only | C30: -0.0239514461 | D30: cost_70
A31: 30 | B31: target7 CHOL + SBP only | C31: -0.01824167728 | D31: cost_70
A32: 31 | B32: target8 All three | C32: -0.02424954132 | D32: cost_70
A33: 32 | B33: egfr:egfr.gt60FALSE | C33: -0.0001231038673 | D33: cost_70
A34: 33 | B34: egfr:egfr.gt60TRUE | C34: -0.0003947186676 | D34: cost_70
A35: 67 | B35: (Intercept) | C35: 5.030072153 | D35: qaly_70 | F35: =EXP(SUMPRODUCT(C35:C67, pat_baseline)) -> 11.68372234 | G35: =EXP(SUMPRODUCT(C35:C67, pat_s1)) -> 12.18999125 | H35: =EXP(SUMPRODUCT(C35:C67, pat_s2)) -> 13.24325657
A36: 68 | B36: genderM | C36: -0.10851131 | D36: qaly_70
A37: 69 | B37: as.factor(ethnicity)2 | C37: 0.0824270438 | D37: qaly_70
A38: 70 | B38: as.factor(ethnicity)3 | C38: -0.003473761231 | D38: qaly_70
A39: 71 | B39: age.diag | C39: -0.02525000815 | D39: qaly_70
A40: 72 | B40: I(age.diag^2) | C40: -0.0001241182918 | D40: qaly_70
A41: 73 | B41: I(age.diag^3) | C41: -1.820545003e-07 | D41: qaly_70
A42: 74 | B42: duration | C42: -0.03734105483 | D42: qaly_70
A43: 75 | B43: smokerY | C43: -0.192066191 | D43: qaly_70
A44: 76 | B44: albY | C44: -0.2252817043 | D44: qaly_70
A45: 77 | B45: wbc | C45: -0.02450436851 | D45: qaly_70
A46: 78 | B46: haem | C46: 0.003399904759 | D46: qaly_70
A47: 79 | B47: hrate | C47: -0.0002304699669 | D47: qaly_70
A48: 80 | B48: bmi | C48: -0.006367243524 | D48: qaly_70
A49: 81 | B49: atfib1ltY | C49: -0.3937866137 | D49: qaly_70
A50: 82 | B50: pvd1ltY | C50: -0.1447024807 | D50: qaly_70
A51: 83 | B51: ihd1ltY | C51: -0.09820272265 | D51: qaly_70
A52: 84 | B52: hf1ltY | C52: -0.348195227 | D52: qaly_70
A53: 85 | B53: amp1ltY | C53: -0.5847316645 | D53: qaly_70
A54: 86 | B54: blind1ltY | C54: -0.02551106702 | D54: qaly_70
A55: 87 | B55: renal1ltY | C55: -0.5783429172 | D55: qaly_70
A56: 88 | B56: stroke1ltY | C56: -0.3413233687 | D56: qaly_70
A57: 89 | B57: mi1ltY | C57: -0.003392637532 | D57: qaly_70
A58: 90 | B58: ulcer1ltY | C58: -0.1617689506 | D58: qaly_70
A59: 91 | B59: target2 HbA1c only | C59: 0.04114714496 | D59: qaly_70
A60: 92 | B60: target3 CHOL only | C60: 0.04773484622 | D60: qaly_70
A61: 93 | B61: target4 SBP only | C61: 0.0424186057 | D61: qaly_70
A62: 94 | B62: target5 HbA1c + CHOL only | C62: 0.09084926268 | D62: qaly_70
A63: 95 | B63: target6 HbA1c + SBP only | C63: 0.07703472971 | D63: qaly_70
A64: 96 | B64: target7 CHOL + SBP only | C64: 0.09052714516 | D64: qaly_70
A65: 97 | B65: target8 All three | C65: 0.1252918651 | D65: qaly_70
A66: 98 | B66: egfr:egfr.gt60FALSE | C66: 0.000173385418 | D66: qaly_70
A67: 99 | B67: egfr:egfr.gt60TRUE | C67: 0.0006691671301 | D67: qaly_70
A68: 100 | B68: (Intercept) | C68: 5.646191689 | D68: lifeyr_70 | F68: =EXP(SUMPRODUCT(C68:C100, pat_baseline)) -> 14.95535655 | G68: =EXP(SUMPRODUCT(C68:C100, pat_s1)) -> 15.52318919 | H68: =EXP(SUMPRODUCT(C68:C100, pat_s2)) -> 16.74982901
A69: 101 | B69: genderM | C69: -0.09734805182 | D69: lifeyr_70
A70: 102 | B70: as.factor(ethnicity)2 | C70: 0.08361541043 | D70: lifeyr_70
A71: 103 | B71: as.factor(ethnicity)3 | C71: -0.002825169974 | D71: lifeyr_70
A72: 104 | B72: age.diag | C72: -0.04588727029 | D72: lifeyr_70
A73: 105 | B73: I(age.diag^2) | C73: 0.000254377547 | D73: lifeyr_70
A74: 106 | B74: I(age.diag^3) | C74: -2.480175028e-06 | D74: lifeyr_70
A75: 107 | B75: duration | C75: -0.03854292314 | D75: lifeyr_70
A76: 108 | B76: smokerY | C76: -0.1915144503 | D76: lifeyr_70
A77: 109 | B77: albY | C77: -0.2146026298 | D77: lifeyr_70
A78: 110 | B78: wbc | C78: -0.02492112375 | D78: lifeyr_70
A79: 111 | B79: haem | C79: 0.002883396294 | D79: lifeyr_70
A80: 112 | B80: hrate | C80: -0.0002284704738 | D80: lifeyr_70
A81: 113 | B81: bmi | C81: -0.005880946413 | D81: lifeyr_70
A82: 114 | B82: atfib1ltY | C82: -0.3778780516 | D82: lifeyr_70
A83: 115 | B83: pvd1ltY | C83: -0.1385576116 | D83: lifeyr_70
A84: 116 | B84: ihd1ltY | C84: -0.09030296313 | D84: lifeyr_70
A85: 117 | B85: hf1ltY | C85: -0.357248034 | D85: lifeyr_70
A86: 118 | B86: amp1ltY | C86: -0.5242792811 | D86: lifeyr_70
A87: 119 | B87: blind1ltY | C87: -0.02298608894 | D87: lifeyr_70
A88: 120 | B88: renal1ltY | C88: -0.5932106039 | D88: lifeyr_70
A89: 121 | B89: stroke1ltY | C89: -0.3263950472 | D89: lifeyr_70
A90: 122 | B90: mi1ltY | C90: -0.007583046277 | D90: lifeyr_70
A91: 123 | B91: ulcer1ltY | C91: -0.1382850318 | D91: lifeyr_70
A92: 124 | B92: target2 HbA1c only | C92: 0.03436066557 | D92: lifeyr_70
A93: 125 | B93: target3 CHOL only | C93: 0.04485752553 | D93: lifeyr_70
A94: 126 | B94: target4 SBP only | C94: 0.0372654493 | D94: lifeyr_70
A95: 127 | B95: target5 HbA1c + CHOL only | C95: 0.08149609371 | D95: lifeyr_70
A96: 128 | B96: target6 HbA1c + SBP only | C96: 0.06780250109 | D96: lifeyr_70
A97: 129 | B97: target7 CHOL + SBP only | C97: 0.08316844664 | D97: lifeyr_70
A98: 130 | B98: target8 All three | C98: 0.1133185168 | D98: lifeyr_70
A99: 131 | B99: egfr:egfr.gt60FALSE | C99: 0.0001667700676 | D99: lifeyr_70
A100: 132 | B100: egfr:egfr.gt60TRUE | C100: 0.0006083442727 | D100: lifeyr_70
A101: 133 | B101: (Intercept) | C101: 16.0673267 | D101: cost_10 | F101: =EXP(SUMPRODUCT(C101:C133, pat_baseline)) -> 18516.00441 | G101: =EXP(SUMPRODUCT(C101:C133, pat_s1)) -> 18000.63295 | H101: =EXP(SUMPRODUCT(C101:C133, pat_s2)) -> 17455.77173
A102: 134 | B102: genderM | C102: -0.07597037183 | D102: cost_10
A103: 135 | B103: as.factor(ethnicity)2 | C103: 0.01362455522 | D103: cost_10
A104: 136 | B104: as.factor(ethnicity)3 | C104: 0.01493759754 | D104: cost_10
A105: 137 | B105: age.diag | C105: -0.3703919575 | D105: cost_10
A106: 138 | B106: I(age.diag^2) | C106: 0.007251841271 | D106: cost_10
A107: 139 | B107: I(age.diag^3) | C107: -4.522267934e-05 | D107: cost_10
A108: 140 | B108: duration | C108: -0.001209858721 | D108: cost_10
A109: 141 | B109: smokerY | C109: -0.05817810569 | D109: cost_10
A110: 142 | B110: albY | C110: 0.01545291379 | D110: cost_10
A111: 143 | B111: wbc | C111: -0.008910728891 | D111: cost_10
A112: 144 | B112: haem | C112: -0.007977843393 | D112: cost_10
A113: 145 | B113: hrate | C113: -0.0002437872886 | D113: cost_10
A114: 146 | B114: bmi | C114: -6.488814446e-05 | D114: cost_10
A115: 147 | B115: atfib1ltY | C115: -0.1010972709 | D115: cost_10
A116: 148 | B116: pvd1ltY | C116: -0.04045280577 | D116: cost_10
A117: 149 | B117: ihd1ltY | C117: 0.5266061907 | D117: cost_10
A118: 150 | B118: hf1ltY | C118: 0.4346485619 | D118: cost_10
A119: 151 | B119: amp1ltY | C119: 0.543880596 | D119: cost_10
A120: 152 | B120: blind1ltY | C120: 0.2833845417 | D120: cost_10
A121: 153 | B121: renal1ltY | C121: 1.499589523 | D121: cost_10
A122: 154 | B122: stroke1ltY | C122: 0.3524998357 | D122: cost_10
A123: 155 | B123: mi1ltY | C123: 0.4524948093 | D123: cost_10
A124: 156 | B124: ulcer1ltY | C124: -0.154931208 | D124: cost_10
A125: 157 | B125: target2 HbA1c only | C125: -0.03829345345 | D125: cost_10
A126: 158 | B126: target3 CHOL only | C126: -0.02564644728 | D126: cost_10
A127: 159 | B127: target4 SBP only | C127: -0.02822854017 | D127: cost_10
A128: 160 | B128: target5 HbA1c + CHOL only | C128: -0.05420723825 | D128: cost_10
A129: 161 | B129: target6 HbA1c + SBP only | C129: -0.0438828597 | D129: cost_10
A130: 162 | B130: target7 CHOL + SBP only | C130: -0.04478489233 | D130: cost_10
A131: 163 | B131: target8 All three | C131: -0.05896510943 | D131: cost_10
A132: 164 | B132: egfr:egfr.gt60FALSE | C132: -0.0001587834398 | D132: cost_10
A133: 165 | B133: egfr:egfr.gt60TRUE | C133: -0.0006143636087 | D133: cost_10
A134: 199 | B134: (Intercept) | C134: 3.174963023 | D134: qaly_10 | F134: =EXP(SUMPRODUCT(C134:C166, pat_baseline)) -> 6.657119623 | G134: =EXP(SUMPRODUCT(C134:C166, pat_s1)) -> 6.81988213 | H134: =EXP(SUMPRODUCT(C134:C166, pat_s2)) -> 7.072928526
A135: 200 | B135: genderM | C135: -0.04925673273 | D135: qaly_10
A136: 201 | B136: as.factor(ethnicity)2 | C136: 0.04419122118 | D136: qaly_10
A137: 202 | B137: as.factor(ethnicity)3 | C137: -0.003237749404 | D137: qaly_10
A138: 203 | B138: age.diag | C138: -0.03609624746 | D138: qaly_10
A139: 204 | B139: I(age.diag^2) | C139: 0.0005960626487 | D139: qaly_10
A140: 205 | B140: I(age.diag^3) | C140: -4.706407275e-06 | D140: qaly_10
A141: 206 | B141: duration | C141: -0.01421027988 | D141: qaly_10
A142: 207 | B142: smokerY | C142: -0.08614918318 | D142: qaly_10
A143: 208 | B143: albY | C143: -0.1123312761 | D143: qaly_10
A144: 209 | B144: wbc | C144: -0.01258795017 | D144: qaly_10
A145: 210 | B145: haem | C145: 0.00204350561 | D145: qaly_10
A146: 211 | B146: hrate | C146: -0.0001311223037 | D146: qaly_10
A147: 212 | B147: bmi | C147: -0.002578636507 | D147: qaly_10
A148: 213 | B148: atfib1ltY | C148: -0.2410884786 | D148: qaly_10
A149: 214 | B149: pvd1ltY | C149: -0.08391936426 | D149: qaly_10
A150: 215 | B150: ihd1ltY | C150: -0.06146835264 | D150: qaly_10
A151: 216 | B151: hf1ltY | C151: -0.2048460302 | D151: qaly_10
A152: 217 | B152: amp1ltY | C152: -0.3669157623 | D152: qaly_10
A153: 218 | B153: blind1ltY | C153: -0.01935807711 | D153: qaly_10
A154: 219 | B154: renal1ltY | C154: -0.3188616466 | D154: qaly_10
A155: 220 | B155: stroke1ltY | C155: -0.1963691952 | D155: qaly_10
A156: 221 | B156: mi1ltY | C156: -0.004799828817 | D156: qaly_10
A157: 222 | B157: ulcer1ltY | C157: -0.08320244784 | D157: qaly_10
A158: 223 | B158: target2 HbA1c only | C158: 0.01980254552 | D158: qaly_10
A159: 224 | B159: target3 CHOL only | C159: 0.02242738447 | D159: qaly_10
A160: 225 | B160: target4 SBP only | C160: 0.02415528679 | D160: qaly_10
A161: 226 | B161: target5 HbA1c + CHOL only | C161: 0.04302061113 | D161: qaly_10
A162: 227 | B162: target6 HbA1c + SBP only | C162: 0.0382565051 | D162: qaly_10
A163: 228 | B163: target7 CHOL + SBP only | C163: 0.04574321362 | D163: qaly_10
A164: 229 | B164: target8 All three | C164: 0.06058771079 | D164: qaly_10
A165: 230 | B165: egfr:egfr.gt60FALSE | C165: 0.0001018706397 | D165: qaly_10
A166: 231 | B166: egfr:egfr.gt60TRUE | C166: 0.0003149823658 | D166: qaly_10
A167: 232 | B167: (Intercept) | C167: 3.742116304 | D167: lifeyr_10 | F167: =EXP(SUMPRODUCT(C167:C199, pat_baseline)) -> 8.423573787 | G167: =EXP(SUMPRODUCT(C167:C199, pat_s1)) -> 8.59266474 | H167: =EXP(SUMPRODUCT(C167:C199, pat_s2)) -> 8.869505219
A168: 233 | B168: genderM | C168: -0.04133735793 | D168: lifeyr_10
A169: 234 | B169: as.factor(ethnicity)2 | C169: 0.04448618031 | D169: lifeyr_10
A170: 235 | B170: as.factor(ethnicity)3 | C170: -0.002708767637 | D170: lifeyr_10
A171: 236 | B171: age.diag | C171: -0.05543689197 | D171: lifeyr_10
A172: 237 | B172: I(age.diag^2) | C172: 0.0009547843359 | D172: lifeyr_10
A173: 238 | B173: I(age.diag^3) | C173: -6.860984192e-06 | D173: lifeyr_10
A174: 239 | B174: duration | C174: -0.01473704392 | D174: lifeyr_10
A175: 240 | B175: smokerY | C175: -0.08438450909 | D175: lifeyr_10
A176: 241 | B176: albY | C176: -0.1021761911 | D176: lifeyr_10
A177: 242 | B177: wbc | C177: -0.01264963801 | D177: lifeyr_10
A178: 243 | B178: haem | C178: 0.001520460367 | D178: lifeyr_10
A179: 244 | B179: hrate | C179: -0.0001292827218 | D179: lifeyr_10
A180: 245 | B180: bmi | C180: -0.002212170058 | D180: lifeyr_10
A181: 246 | B181: atfib1ltY | C181: -0.2263249598 | D181: lifeyr_10
A182: 247 | B182: pvd1ltY | C182: -0.07902398837 | D182: lifeyr_10
A183: 248 | B183: ihd1ltY | C183: -0.05638484782 | D183: lifeyr_10
A184: 249 | B184: hf1ltY | C184: -0.2099314013 | D184: lifeyr_10
A185: 250 | B185: amp1ltY | C185: -0.3165594453 | D185: lifeyr_10
A186: 251 | B186: blind1ltY | C186: -0.01667209401 | D186: lifeyr_10
A187: 252 | B187: renal1ltY | C187: -0.3274158226 | D187: lifeyr_10
A188: 253 | B188: stroke1ltY | C188: -0.1867238497 | D188: lifeyr_10
A189: 254 | B189: mi1ltY | C189: -0.008025397095 | D189: lifeyr_10
A190: 255 | B190: ulcer1ltY | C190: -0.0640245976 | D190: lifeyr_10
A191: 256 | B191: target2 HbA1c only | C191: 0.01451283119 | D191: lifeyr_10
A192: 257 | B192: target3 CHOL only | C192: 0.01994140871 | D192: lifeyr_10
A193: 258 | B193: target4 SBP only | C193: 0.01987472365 | D193: lifeyr_10
A194: 259 | B194: target5 HbA1c + CHOL only | C194: 0.03577497786 | D194: lifeyr_10
A195: 260 | B195: target6 HbA1c + SBP only | C195: 0.03136046699 | D195: lifeyr_10
A196: 261 | B196: target7 CHOL + SBP only | C196: 0.03956362758 | D196: lifeyr_10
A197: 262 | B197: target8 All three | C197: 0.05158483497 | D197: lifeyr_10
A198: 263 | B198: egfr:egfr.gt60FALSE | C198: 9.211381137e-05 | D198: lifeyr_10
A199: 264 | B199: egfr:egfr.gt60TRUE | C199: 0.0002614934288 | D199: lifeyr_10
A200: 265 | B200: (Intercept) | C200: 8.773069309 | D200: alldeath_70 | F200: =EXP(SUMPRODUCT(C200:C232, pat_baseline))/(1+EXP(SUMPRODUCT(C200:C232, pat_baseline)))*100 -> 99.9953917 | G200: =EXP(SUMPRODUCT(C200:C232, pat_s1))/(1+EXP(SUMPRODUCT(C200:C232, pat_s1)))*100 -> 99.99539128 | H200: =EXP(SUMPRODUCT(C200:C232, pat_s2))/(1+EXP(SUMPRODUCT(C200:C232, pat_s2)))*100 -> 99.99536627
... 659 more rows

Sheet GP practice-level outcomes
C7: ="Scenario: " &C9 -> Scenario: Baseline - Lowest performing decile (D1) | D7: ="Scenario: " &D9 -> Scenario: Improve to D10 | E7: ="Scenario: " &E9 -> Scenario: Ideal - 100% patients meet all targets
C8: Baseline scenario | D8: Scenario 1 | E8: Scenario 2
B9: % of patients that meet treatment target | C9: Baseline - Lowest performing decile (D1) | D9: Improve to D10 | E9: Ideal - 100% patients meet all targets
B10: No target | C10: 8 | D10: 1 | E10: 0
B11: HbA1c target only | C11: 6 | D11: 0 | E11: 0
B12: Cholesterol target only | C12: 11 | D12: 0 | E12: 0
B13: BP target only | C13: 3 | D13: 12 | E13: 0
B14: HbA1c and Cholesterol target only | C14: 15 | D14: 15 | E14: 0
B15: HbA1c and BP target only | C15: 10 | D15: 5 | E15: 0
B16: Cholesterol and BP target only | C16: 20 | D16: 13 | E16: 0
B17: All three targets | C17: 27 | D17: 54 | E17: 100

Sheet output.gp (hidden)
D8: =name_baseline -> Baseline - Lowest performing decile (D1) | E8: =name_s1 -> Improve to D10 | F8: =name_s2 -> Ideal - 100% patients meet all targets | H8: label_s1 | I8: label_s2
B9: Total cost | C9: Lifetime | D9: =cost_70 -> 43280.86913 | E9: =s1_cost_70 -> 43128.05507 | F9: =s2_cost_70 -> 43073.90288 | H9: =TEXT(s1_cost_70,"#,###")& " ("& TEXT(s1_cost_70-cost_70, "+#,##0;-#,##0") &")" -> 43,128 (-153) | I9: =TEXT(s2_cost_70,"#,###")& " ("& TEXT(s2_cost_70-cost_70, "+#,##0;-#,##0") &")" -> 43,074 (-207)
C10: 10-year | D10: =cost_10 -> 20929.88949 | E10: =s1_cost_10 -> 20761.3169 | F10: =s2_cost_10 -> 20602.98687 | H10: =TEXT(s1_cost_10,"#,###")& " ("& TEXT(s1_cost_10-cost_10, "+#,##0;-#,##0") &")" -> 20,761 (-169) | I10: =TEXT(s2_cost_10,"#,###")& " ("& TEXT(s2_cost_10-cost_10, "+#,##0;-#,##0") &")" -> 20,603 (-327)
D12: =name_baseline -> Baseline - Lowest performing decile (D1) | E12: =name_s1 -> Improve to D10 | F12: =name_s2 -> Ideal - 100% patients meet all targets
B13: LYs | C13: Lifetime | D13: =lifeyr_70 -> 15.89889572 | E13: =s1_lifeyr_70 -> 16.18052544 | F13: =s2_lifeyr_70 -> 16.52158556 | H13: =ROUND(s1_lifeyr_70,1)& " ("& TEXT(s1_lifeyr_70-lifeyr_70,"+0.00;-0.00") &")" -> 16.2 (+0.28) | I13: =ROUND(s2_lifeyr_70,1)& " ("& TEXT(s2_lifeyr_70-lifeyr_70,"+0.00;-0.00") &")" -> 16.5 (+0.62)
C14: 10-year | D14: =lifeyr_10 -> 8.103833368 | E14: =s1_lifeyr_10 -> 8.17110618 | F14: =s2_lifeyr_10 -> 8.246608639 | H14: =ROUND(s1_lifeyr_10,1)& " ("& TEXT(s1_lifeyr_10-lifeyr_10,"+0.00;-0.00") &")" -> 8.2 (+0.07) | I14: =ROUND(s2_lifeyr_10,1)& " ("& TEXT(s2_lifeyr_10-lifeyr_10,"+0.00;-0.00") &")" -> 8.2 (+0.14)
B15: QALYs | C15: Lifetime | D15: =qaly_70 -> 12.53011821 | E15: =s1_qaly_70 -> 12.77697116 | F15: =s2_qaly_70 -> 13.07237042 | H15: =ROUND(s1_qaly_70,1)& " ("& TEXT(s1_qaly_70-qaly_70,"+0.00;-0.00") &")" -> 12.8 (+0.25) | I15: =ROUND(s2_qaly_70,1)& " ("& TEXT(s2_qaly_70-qaly_70,"+0.00;-0.00") &")" -> 13.1 (+0.54)
C16: 10-year | D16: =qaly_10 -> 6.450386798 | E16: =s1_qaly_10 -> 6.513231682 | F16: =s2_qaly_10 -> 6.582431933 | H16: =ROUND(s1_qaly_10,1)& " ("& TEXT(s1_qaly_10-qaly_10,"+0.00;-0.00") &")" -> 6.5 (+0.06) | I16: =ROUND(s2_qaly_10,1)& " ("& TEXT(s2_qaly_10-qaly_10,"+0.00;-0.00") &")" -> 6.6 (+0.13)
D18: =name_baseline -> Baseline - Lowest performing decile (D1) | E18: =name_s1 -> Improve to D10 | F18: =name_s2 -> Ideal - 100% patients meet all targets
B19: All-cause death | C19: Lifetime | D19: =alldeath_70 -> 99.99531388 | E19: =s1_alldeath_70 -> 99.99531187 | F19: =s2_alldeath_70 -> 99.99530778 | H19: =ROUND(s1_alldeath_70,1)& " ("& TEXT(s1_alldeath_70-alldeath_70,"+0.0;-0.0") &")" -> 100 (-0.0) | I19: =ROUND(s2_alldeath_70,1)& " ("& TEXT(s2_alldeath_70-alldeath_70,"+0.0;-0.0") &")" -> 100 (-0.0)
B20: All-cause death | C20: 10-year | D20: =alldeath_10 -> 38.22372496 | E20: =s1_alldeath_10 -> 37.41911781 | F20: =s2_alldeath_10 -> 36.44569497 | H20: =ROUND(s1_alldeath_10,1)& " ("& TEXT(s1_alldeath_10-alldeath_10,"+0.0;-0.0") &")" -> 37.4 (-0.8) | I20: =ROUND(s2_alldeath_10,1)& " ("& TEXT(s2_alldeath_10-alldeath_10,"+0.0;-0.0") &")" -> 36.4 (-1.8)
B21: CV death | C21: Lifetime | D21: =cvddeath_70 -> 34.81434014 | E21: =s1_cvddeath_70 -> 33.29243995 | F21: =s2_cvddeath_70 -> 31.36189437 | H21: =ROUND(s1_cvddeath_70,1)& " ("& TEXT(s1_cvddeath_70-cvddeath_70,"+0.0;-0.0") &")" -> 33.3 (-1.5) | I21: =ROUND(s2_cvddeath_70,1)& " ("& TEXT(s2_cvddeath_70-cvddeath_70,"+0.0;-0.0") &")" -> 31.4 (-3.5)
C22: 10-year | D22: =cvddeath_10 -> 16.14720917 | E22: =s1_cvddeath_10 -> 15.22920088 | F22: =s2_cvddeath_10 -> 14.10321637 | H22: =ROUND(s1_cvddeath_10,1)& " ("& TEXT(s1_cvddeath_10-cvddeath_10,"+0.0;-0.0") &")" -> 15.2 (-0.9) | I22: =ROUND(s2_cvddeath_10,1)& " ("& TEXT(s2_cvddeath_10-cvddeath_10,"+0.0;-0.0") &")" -> 14.1 (-2.0)
D24: =name_baseline -> Baseline - Lowest performing decile (D1) | E24: =name_s1 -> Improve to D10 | F24: =name_s2 -> Ideal - 100% patients meet all targets
B25: Myocardial infarction | C25: Lifetime | D25: =mi_70 -> 23.69116647 | E25: =s1_mi_70 -> 22.53861783 | F25: =s2_mi_70 -> 20.89483645 | H25: =ROUND(s1_mi_70,1)& " ("& TEXT(s1_mi_70-mi_70,"+0.0;-0.0") &")" -> 22.5 (-1.2) | I25: =ROUND(s2_mi_70,1)& " ("& TEXT(s2_mi_70-mi_70,"+0.0;-0.0") &")" -> 20.9 (-2.8)
C26: 10-year | D26: =mi_10 -> 13.77786955 | E26: =s1_mi_10 -> 12.96293604 | F26: =s2_mi_10 -> 11.83970198 | H26: =ROUND(s1_mi_10,1)& " ("& TEXT(s1_mi_10-mi_10,"+0.0;-0.0") &")" -> 13 (-0.8) | I26: =ROUND(s2_mi_10,1)& " ("& TEXT(s2_mi_10-mi_10,"+0.0;-0.0") &")" -> 11.8 (-1.9)
B27: Stroke | C27: Lifetime | D27: =stroke_70 -> 12.85326584 | E27: =s1_stroke_70 -> 11.50363401 | F27: =s2_stroke_70 -> 10.22699499 | H27: =ROUND(s1_stroke_70,1)& " ("& TEXT(s1_stroke_70-stroke_70,"+0.0;-0.0") &")" -> 11.5 (-1.3) | I27: =ROUND(s2_stroke_70,1)& " ("& TEXT(s2_stroke_70-stroke_70,"+0.0;-0.0") &")" -> 10.2 (-2.6)
C28: 10-year | D28: =stroke_10 -> 6.995954279 | E28: =s1_stroke_10 -> 6.181100181 | F28: =s2_stroke_10 -> 5.414366936 | H28: =ROUND(s1_stroke_10,1)& " ("& TEXT(s1_stroke_10-stroke_10,"+0.0;-0.0") &")" -> 6.2 (-0.8) | I28: =ROUND(s2_stroke_10,1)& " ("& TEXT(s2_stroke_10-stroke_10,"+0.0;-0.0") &")" -> 5.4 (-1.6)
B29: Heart failure | C29: Lifetime | D29: =hf_70 -> 11.84379187 | E29: =s1_hf_70 -> 11.88413366 | F29: =s2_hf_70 -> 11.81521428 | H29: =ROUND(s1_hf_70,1)& " ("& TEXT(s1_hf_70-hf_70,"+0.0;-0.0") &")" -> 11.9 (+0.0) | I29: =ROUND(s2_hf_70,1)& " ("& TEXT(s2_hf_70-hf_70,"+0.0;-0.0") &")" -> 11.8 (-0.0)
C30: 10-year | D30: =hf_10 -> 6.30111456 | E30: =s1_hf_10 -> 6.258421178 | F30: =s2_hf_10 -> 6.145139454 | H30: =ROUND(s1_hf_10,1)& " ("& TEXT(s1_hf_10-hf_10,"+0.0;-0.0") &")" -> 6.3 (-0.0) | I30: =ROUND(s2_hf_10,1)& " ("& TEXT(s2_hf_10-hf_10,"+0.0;-0.0") &")" -> 6.1 (-0.2)
B31: Ischaemic heart disease | C31: Lifetime | D31: =ihd_70 -> 15.12807952 | E31: =s1_ihd_70 -> 14.58033721 | F31: =s2_ihd_70 -> 13.85305809 | H31: =ROUND(s1_ihd_70,1)& " ("& TEXT(s1_ihd_70-ihd_70,"+0.0;-0.0") &")" -> 14.6 (-0.5) | I31: =ROUND(s2_ihd_70,1)& " ("& TEXT(s2_ihd_70-ihd_70,"+0.0;-0.0") &")" -> 13.9 (-1.3)
C32: 10-year | D32: =ihd_10 -> 7.281907043 | E32: =s1_ihd_10 -> 6.935792578 | F32: =s2_ihd_10 -> 6.492144944 | H32: =ROUND(s1_ihd_10,1)& " ("& TEXT(s1_ihd_10-ihd_10,"+0.0;-0.0") &")" -> 6.9 (-0.3) | I32: =ROUND(s2_ihd_10,1)& " ("& TEXT(s2_ihd_10-ihd_10,"+0.0;-0.0") &")" -> 6.5 (-0.8)
D34: =name_baseline -> Baseline - Lowest performing decile (D1) | E34: =name_s1 -> Improve to D10 | F34: =name_s2 -> Ideal - 100% patients meet all targets
B35: Blindness | C35: Lifetime | D35: =blind_70 -> 6.193814404 | E35: =s1_blind_70 -> 5.772044366 | F35: =s2_blind_70 -> 5.253118417 | H35: =ROUND(s1_blind_70,1)& " ("& TEXT(s1_blind_70-blind_70,"+0.0;-0.0") &")" -> 5.8 (-0.4) | I35: =ROUND(s2_blind_70,1)& " ("& TEXT(s2_blind_70-blind_70,"+0.0;-0.0") &")" -> 5.3 (-0.9)
C36: 10-year | D36: =blind_10 -> 3.667129589 | E36: =s1_blind_10 -> 3.384352444 | F36: =s2_blind_10 -> 3.040813688 | H36: =ROUND(s1_blind_10,1)& " ("& TEXT(s1_blind_10-blind_10,"+0.0;-0.0") &")" -> 3.4 (-0.3) | I36: =ROUND(s2_blind_10,1)& " ("& TEXT(s2_blind_10-blind_10,"+0.0;-0.0") &")" -> 3 (-0.6)
B37: Amputation | C37: Lifetime | D37: =amp_70 -> 4.470966593 | E37: =s1_amp_70 -> 4.097210584 | F37: =s2_amp_70 -> 3.634060686 | H37: =ROUND(s1_amp_70,1)& " ("& TEXT(s1_amp_70-amp_70,"+0.0;-0.0") &")" -> 4.1 (-0.4) | I37: =ROUND(s2_amp_70,1)& " ("& TEXT(s2_amp_70-amp_70,"+0.0;-0.0") &")" -> 3.6 (-0.8)
C38: 10-year | D38: =amp_10 -> 1.710833728 | E38: =s1_amp_10 -> 1.550569704 | F38: =s2_amp_10 -> 1.358284409 | H38: =ROUND(s1_amp_10,1)& " ("& TEXT(s1_amp_10-amp_10,"+0.0;-0.0") &")" -> 1.6 (-0.2) | I38: =ROUND(s2_amp_10,1)& " ("& TEXT(s2_amp_10-amp_10,"+0.0;-0.0") &")" -> 1.4 (-0.4)
B39: Ulcer | C39: Lifetime | D39: =ulcer_70 -> 3.343865487 | E39: =s1_ulcer_70 -> 3.236181512 | F39: =s2_ulcer_70 -> 3.02982596 | H39: =ROUND(s1_ulcer_70,1)& " ("& TEXT(s1_ulcer_70-ulcer_70,"+0.0;-0.0") &")" -> 3.2 (-0.1) | I39: =ROUND(s2_ulcer_70,1)& " ("& TEXT(s2_ulcer_70-ulcer_70,"+0.0;-0.0") &")" -> 3 (-0.3)
C40: 10-year | D40: =ulcer_10 -> 2.000556721 | E40: =s1_ulcer_10 -> 1.919525893 | F40: =s2_ulcer_10 -> 1.773434489 | H40: =ROUND(s1_ulcer_10,1)& " ("& TEXT(s1_ulcer_10-ulcer_10,"+0.0;-0.0") &")" -> 1.9 (-0.1) | I40: =ROUND(s2_ulcer_10,1)& " ("& TEXT(s2_ulcer_10-ulcer_10,"+0.0;-0.0") &")" -> 1.8 (-0.2)
B41: Renal failure | C41: Lifetime | D41: =renal_70 -> 1.668631415 | E41: =s1_renal_70 -> 1.568961944 | F41: =s2_renal_70 -> 1.456716582 | H41: =ROUND(s1_renal_70,1)& " ("& TEXT(s1_renal_70-renal_70,"+0.0;-0.0") &")" -> 1.6 (-0.1) | I41: =ROUND(s2_renal_70,1)& " ("& TEXT(s2_renal_70-renal_70,"+0.0;-0.0") &")" -> 1.5 (-0.2)
C42: 10-year | D42: =renal_10 -> 0.9631609946 | E42: =s1_renal_10 -> 0.8970398744 | F42: =s2_renal_10 -> 0.8222534301 | H42: =ROUND(s1_renal_10,1)& " ("& TEXT(s1_renal_10-renal_10,"+0.0;-0.0") &")" -> 0.9 (-0.1) | I42: =ROUND(s2_renal_10,1)& " ("& TEXT(s2_renal_10-renal_10,"+0.0;-0.0") &")" -> 0.8 (-0.1)
D44: =name_baseline -> Baseline - Lowest performing decile (D1) | E44: =name_s1 -> Improve to D10 | F44: =name_s2 -> Ideal - 100% patients meet all targets
B45: Lifetime | C45: Blindness | D45: =blind_70 -> 6.193814404 | E45: =s1_blind_70 -> 5.772044366 | F45: =s2_blind_70 -> 5.253118417
C46: Amputation | D46: =amp_70 -> 4.470966593 | E46: =s1_amp_70 -> 4.097210584 | F46: =s2_amp_70 -> 3.634060686
C47: Ulcer | D47: =ulcer_70 -> 3.343865487 | E47: =s1_ulcer_70 -> 3.236181512 | F47: =s2_ulcer_70 -> 3.02982596
C48: Renal failure | D48: =renal_70 -> 1.668631415 | E48: =s1_renal_70 -> 1.568961944 | F48: =s2_renal_70 -> 1.456716582
B49: 10-year | C49: Blindness | D49: =blind_10 -> 3.667129589 | E49: =s1_blind_10 -> 3.384352444 | F49: =s2_blind_10 -> 3.040813688
C50: Amputation | D50: =amp_10 -> 1.710833728 | E50: =s1_amp_10 -> 1.550569704 | F50: =s2_amp_10 -> 1.358284409
C51: Ulcer | D51: =ulcer_10 -> 2.000556721 | E51: =s1_ulcer_10 -> 1.919525893 | F51: =s2_ulcer_10 -> 1.773434489
C52: Renal failure | D52: =renal_10 -> 0.9631609946 | E52: =s1_renal_10 -> 0.8970398744 | F52: =s2_renal_10 -> 0.8222534301

Sheet baseline.gp (hidden)
A1: Decile | B1: max_allthreetargets
A2: 1 | B2: 30.3 | C2: =IF(A2=gp_decile,1,0) -> 1
A3: =A2+1 -> 2 | B3: 33.8 | C3: 0
A4: =A3+1 -> 3 | B4: 36.3 | C4: 0
A5: 4 | B5: 38.4 | C5: 0
A6: 5 | B6: 40.2 | C6: 0
A7: 6 | B7: 42.2 | C7: 0
A8: 7 | B8: 44.3 | C8: 0
A9: 8 | B9: 46.7 | C9: 0
A10: 9 | B10: 50.3 | C10: 0
A11: 10 | B11: 100 | C11: 0
A12: 10
A14: gp_decile | B14: =IF(percent_8<$B$2,$A$2,INDEX($A$2:$A$12,MATCH(percent_8,$B$2:$B$11,1)+1)) -> 1

Sheet effect.avgpat (hidden)
B1: deciles.num | C1: VAR | D1: outcome | E1: outcome_target2 | F1: outcome_target3 | G1: outcome_target4 | H1: outcome_target5 | I1: outcome_target6 | J1: outcome_target7 | K1: outcome_target8 | M1: OUTCOME_baseline | N1: OUTCOME_baseline | O1: OUTCOME_baseline | Q1: Scenario_baseline | R1: Scenario_s1 | S1: Scenario_s2 | U1: POP_OUTCOME
A2: 1 | B2: 1 | C2: cost_70 | D2: 44131.19286 | E2: 43007.25523 | F2: 43794.45543 | G2: 43243.56442 | H2: 42999.46864 | I2: 43086.74492 | J2: 43333.46396 | K2: 43073.90288 | M2: =MMULT(D2:K11,percent_baseline)/100 -> 43280.86913 | N2: =MMULT(D2:K11, percent_s1)/100 -> 43128.05507 | O2: =MMULT(D2:K11, percent_s2)/100 -> 43073.90288
A3: 2 | B3: 2 | C3: cost_70 | D3: 43754.58749 | E3: 42640.24129 | F3: 43420.7237 | G3: 42874.53386 | H3: 42632.52114 | I3: 42719.05263 | J3: 42963.66622 | K3: 42706.32018 | M3: 42911.52023 | N3: 42760.01025 | O3: 42706.32018
A4: 3 | B4: 3 | C4: cost_70 | D4: 43185.76791 | E4: 42085.90846 | F4: 42856.24442 | G4: 42317.15518 | H4: 42078.28868 | I4: 42163.69523 | J4: 42405.12879 | K4: 42151.12831 | M4: 42353.66071 | N4: 42204.12039 | O4: 42151.12831
A5: 4 | B5: 4 | C5: cost_70 | D5: 43369.16925 | E5: 42264.63892 | F5: 43038.24634 | G5: 42496.86769 | H5: 42256.98677 | I5: 42342.75603 | J5: 42585.21492 | K5: 42330.13574 | M5: 42533.52826 | N5: 42383.35287 | O5: 42330.13574
A6: 5 | B6: 5 | C6: cost_70 | D6: 43667.81878 | E6: 42555.68242 | F6: 43334.61707 | G6: 42789.51037 | H6: 42547.97758 | I6: 42634.33747 | J6: 42878.46597 | K6: 42621.63027 | M6: 42826.42339 | N6: 42675.21386 | O6: 42621.63027
A7: 6 | B7: 6 | C7: cost_70 | D7: 43638.21349 | E7: 42526.83111 | F7: 43305.23768 | G7: 42760.50054 | H7: 42519.1315 | I7: 42605.43284 | J7: 42849.39584 | K7: 42592.73426 | M7: 42797.38853 | N7: 42646.28152 | O7: 42592.73426
A8: 7 | B8: 7 | C8: cost_70 | D8: 43098.69373 | E8: 42001.0519 | F8: 42769.83465 | G8: 42231.83236 | H8: 41993.44748 | I8: 42078.68183 | J8: 42319.6286 | K8: 42066.14025 | M8: 42268.26429 | N8: 42119.02548 | O8: 42066.14025
A9: 8 | B9: 8 | C9: cost_70 | D9: 43041.18176 | E9: 41945.00465 | F9: 42712.76152 | G9: 42175.47715 | H9: 41937.41038 | I9: 42022.53099 | J9: 42263.15623 | K9: 42010.00614 | M9: 42211.86046 | N9: 42062.82081 | O9: 42010.00614
A10: 9 | B10: 9 | C10: cost_70 | D10: 42439.63781 | E10: 41358.78088 | F10: 42115.80758 | G10: 41586.03229 | H10: 41351.29274 | I10: 41435.22371 | J10: 41672.48597 | K10: 41422.87391 | M10: 41621.90711 | N10: 41474.95044 | O10: 41422.87391
A11: 10 | B11: 10 | C11: cost_70 | D11: 42550.4545 | E11: 41466.77527 | F11: 42225.77869 | G11: 41694.62008 | H11: 41459.26759 | I11: 41543.41771 | J11: 41781.2995 | K11: 41531.03566 | M11: 41730.58857 | N11: 41583.24817 | O11: 41531.03566 | Q11: =SUMPRODUCT(M2:M11, array_decile) -> 43280.86913 | R11: =SUMPRODUCT(N2:N11, array_decile) -> 43128.05507 | S11: =SUMPRODUCT(O2:O11, array_decile) -> 43073.90288
A12: 21 | B12: 1 | C12: qaly_70 | D12: 11.53295985 | E12: 12.01740667 | F12: 12.09683509 | G12: 12.03269605 | H12: 12.62978954 | I12: 12.4565145 | J12: 12.62572191 | K12: 13.07237042 | M12: =MMULT(D12:K21,percent_baseline)/100 -> 12.53011821 | N12: =MMULT(D12:K21, percent_s1)/100 -> 12.77697116 | O12: =MMULT(D12:K21, percent_s2)/100 -> 13.07237042
A13: 22 | B13: 2 | C13: qaly_70 | D13: 11.37927113 | E13: 11.85726219 | F13: 11.93563215 | G13: 11.87234783 | H13: 12.46148442 | I13: 12.29051846 | J13: 12.457471 | K13: 12.89816745 | M13: 12.36314132 | N13: 12.60670469 | O13: 12.89816745
A14: 23 | B14: 3 | C14: qaly_70 | D14: 11.22854737 | E14: 11.70020721 | F14: 11.77753912 | G14: 11.71509303 | H14: 12.29642623 | I14: 12.1277248 | J14: 12.29246598 | K14: 12.7273252 | M14: 12.19938573 | N14: 12.439723 | O14: 12.7273252
A15: 24 | B15: 4 | C15: qaly_70 | D15: 11.29317119 | E15: 11.76754559 | F15: 11.84532257 | G15: 11.78251708 | H15: 12.36719604 | I15: 12.19752367 | J15: 12.36321299 | K15: 12.80057496 | M15: 12.26959704 | N15: 12.51131752 | O15: 12.80057496
A16: 25 | B16: 5 | C16: qaly_70 | D16: 11.30429687 | E16: 11.77913861 | F16: 11.85699221 | G16: 11.79412484 | H16: 12.37937981 | I16: 12.20954029 | J16: 12.37539284 | K16: 12.81318568 | M16: 12.28168466 | N16: 12.52364327 | O16: 12.81318568
A17: 26 | B17: 6 | C17: qaly_70 | D17: 11.28342287 | E17: 11.75738779 | F17: 11.83509763 | G17: 11.77234635 | H17: 12.35652062 | I17: 12.18699471 | J17: 12.352541 | K17: 12.78952544 | M17: 12.25900586 | N17: 12.50051769 | O17: 12.78952544
A18: 27 | B18: 7 | C18: qaly_70 | D18: 11.18527254 | E18: 11.65511461 | F18: 11.73214849 | G18: 11.66994306 | H18: 12.2490358 | I18: 12.08098454 | J18: 12.24509081 | K18: 12.67827408 | M18: 12.15236929 | N18: 12.3917803 | O18: 12.67827408
A19: 28 | B19: 8 | C19: qaly_70 | D19: 11.1852285 | E19: 11.65506872 | F19: 11.73210229 | G19: 11.66989711 | H19: 12.24898757 | I19: 12.08093697 | J19: 12.24504259 | K19: 12.67822416 | M19: 12.15232144 | N19: 12.39173151 | O19: 12.67822416
A20: 29 | B20: 9 | C20: qaly_70 | D20: 11.04081392 | E20: 11.50458795 | F20: 11.58062692 | G20: 11.51922488 | H20: 12.0908386 | I20: 11.92495774 | J20: 12.08694456 | K20: 12.51453324 | M20: 11.99542055 | N20: 12.23173954 | O20: 12.51453324
A21: 30 | B21: 10 | C21: qaly_70 | D21: 11.05572813 | E21: 11.52012864 | F21: 11.59627033 | G21: 11.53478534 | H21: 12.10717121 | I21: 11.94106627 | J21: 12.10327191 | K21: 12.53143819 | M21: 12.01162427 | N21: 12.24826249 | O21: 12.53143819 | Q21: =SUMPRODUCT(M12:M21, array_decile) -> 12.53011821 | R21: =SUMPRODUCT(N12:N21, array_decile) -> 12.77697116 | S21: =SUMPRODUCT(O12:O21, array_decile) -> 13.07237042
A22: 31 | B22: 1 | C22: lifeyr_70 | D22: 14.75156568 | E22: 15.26724816 | F22: 15.42835038 | G22: 15.31166068 | H22: 16.00410607 | I22: 15.78644604 | J22: 16.03089298 | K22: 16.52158556 | M22: =MMULT(D22:K31,percent_baseline)/100 -> 15.89889572 | N22: =MMULT(D22:K31, percent_s1)/100 -> 16.18052544 | O22: =MMULT(D22:K31, percent_s2)/100 -> 16.52158556
A23: 32 | B23: 2 | C23: lifeyr_70 | D23: 14.55225986 | E23: 15.06097504 | F23: 15.21990064 | G23: 15.10478752 | H23: 15.7878774 | I23: 15.57315813 | J23: 15.81430239 | K23: 16.29836531 | M23: 15.68408852 | N23: 15.9619132 | O23: 16.29836531
A24: 33 | B24: 3 | C24: lifeyr_70 | D24: 14.36156358 | E24: 14.86361244 | F24: 15.02045543 | G24: 14.90685078 | H24: 15.58098929 | I24: 15.36908375 | J24: 15.607068 | K24: 16.08478765 | M24: 15.47856049 | N24: 15.75274448 | O24: 16.08478765
A25: 34 | B25: 4 | C25: lifeyr_70 | D25: 14.44301225 | E25: 14.94790837 | F25: 15.10564087 | G25: 14.99139193 | H25: 15.66935368 | I25: 15.45624637 | J25: 15.69558029 | K25: 16.17600923 | M25: 15.56634397 | N25: 15.84208295 | O25: 16.17600923
A26: 35 | B26: 5 | C26: lifeyr_70 | D26: 14.45717042 | E26: 14.96256148 | F26: 15.1204486 | G26: 15.00608767 | H26: 15.684714 | I26: 15.47139779 | J26: 15.71096633 | K26: 16.19186622 | M26: 15.58160332 | N26: 15.85761259 | O26: 16.19186622
A27: 36 | B27: 6 | C27: lifeyr_70 | D27: 14.42912888 | E27: 14.93353967 | F27: 15.09112055 | G27: 14.97698144 | H27: 15.65429149 | I27: 15.44138903 | J27: 15.68049289 | K27: 16.16046002 | M27: 15.5513808 | N27: 15.82685472 | O27: 16.16046002
A28: 37 | B28: 7 | C28: lifeyr_70 | D28: 14.30113056 | E28: 14.80106681 | F28: 14.95724981 | G28: 14.84412321 | H28: 15.51542496 | I28: 15.30441112 | J28: 15.54139394 | K28: 16.01710336 | M28: 15.41342718 | N28: 15.68645742 | O28: 16.01710336
A29: 38 | B29: 8 | C29: lifeyr_70 | D29: 14.30439949 | E29: 14.80445001 | F29: 14.96066872 | G29: 14.84751626 | H29: 15.51897145 | I29: 15.30790938 | J29: 15.54494636 | K29: 16.02076452 | M29: 15.41695035 | N29: 15.690043 | O29: 16.02076452
A30: 39 | B30: 9 | C30: lifeyr_70 | D30: 14.11416889 | E30: 14.60756937 | F30: 14.76171056 | G30: 14.65006289 | H30: 15.31258857 | I30: 15.10433335 | J30: 15.33821805 | K30: 15.80770842 | M30: 15.21192422 | N30: 15.48138508 | O30: 15.80770842
A31: 40 | B31: 10 | C31: lifeyr_70 | D31: 14.13485192 | E31: 14.62897543 | F31: 14.7833425 | G31: 14.67153122 | H31: 15.33502777 | I31: 15.12646738 | J31: 15.36069481 | K31: 15.83087317 | M31: 15.23421591 | N31: 15.50407164 | O31: 15.83087317 | Q31: =SUMPRODUCT(M22:M31, array_decile) -> 15.89889572 | R31: =SUMPRODUCT(N22:N31, array_decile) -> 16.18052544 | S31: =SUMPRODUCT(O22:O31, array_decile) -> 16.52158556
A32: 71 | B32: 1 | C32: cost_10 | D32: 21854.37583 | E32: 21033.31722 | F32: 21301.01494 | G32: 21246.08468 | H32: 20701.2468 | I32: 20916.08141 | J32: 20897.22293 | K32: 20602.98687 | M32: =MMULT(D32:K41,percent_baseline)/100 -> 20929.88949 | N32: =MMULT(D32:K41, percent_s1)/100 -> 20761.3169 | O32: =MMULT(D32:K41, percent_s2)/100 -> 20602.98687
A33: 72 | B33: 2 | C33: cost_10 | D33: 21931.87172 | E33: 21107.90163 | F33: 21376.5486 | G33: 21321.42357 | H33: 20774.65368 | I33: 20990.2501 | J33: 20971.32475 | K33: 20676.04532 | M33: 21004.10714 | N33: 20834.93679 | O33: 20676.04532
A34: 73 | B34: 3 | C34: cost_10 | D34: 21929.91925 | E34: 21106.02251 | F34: 21374.64557 | G34: 21319.52544 | H34: 20772.80422 | I34: 20988.38145 | J34: 20969.45779 | K34: 20674.20465 | M34: 21002.23726 | N34: 20833.08197 | O34: 20674.20465
A35: 74 | B35: 4 | C35: cost_10 | D35: 21947.4068 | E35: 21122.85306 | F35: 21391.69032 | G35: 21336.52624 | H35: 20789.36905 | I35: 21005.11819 | J35: 20986.17943 | K35: 20690.69085 | M35: 21018.98504 | N35: 20849.69487 | O35: 20690.69085
A36: 75 | B36: 5 | C36: cost_10 | D36: 22075.50507 | E36: 21246.13874 | F36: 21516.5451 | G36: 21461.05904 | H36: 20910.70832 | I36: 21127.7167 | J36: 21108.6674 | K36: 20811.45417 | M36: 21141.66449 | N36: 20971.38623 | O36: 20811.45417
A37: 76 | B37: 6 | C37: cost_10 | D37: 22016.52053 | E37: 21189.37022 | F37: 21459.05407 | G37: 21403.71627 | H37: 20854.83606 | I37: 21071.2646 | J37: 21052.2662 | K37: 20755.84711 | M37: 21085.17512 | N37: 20915.35184 | O37: 20755.84711
A38: 77 | B38: 7 | C38: cost_10 | D38: 21956.57439 | E38: 21131.67623 | F38: 21400.62578 | G38: 21345.43866 | H38: 20798.05292 | I38: 21013.89218 | J38: 20994.94551 | K38: 20699.3335 | M38: 21027.76482 | N38: 20858.40394 | O38: 20699.3335
A39: 78 | B39: 8 | C39: cost_10 | D39: 21825.4297 | E39: 21005.45858 | F39: 21272.80173 | G39: 21217.94423 | H39: 20673.82798 | I39: 20888.37805 | J39: 20869.54455 | K39: 20575.6982 | M39: 20902.16783 | N39: 20733.81852 | O39: 20575.6982
A40: 79 | B40: 9 | C40: cost_10 | D40: 21867.98036 | E40: 21046.41063 | F40: 21314.27499 | G40: 21259.31054 | H40: 20714.13349 | I40: 20929.10184 | J40: 20910.23162 | K40: 20615.81239 | M40: 20942.91851 | N40: 20774.24099 | O40: 20615.81239
A41: 80 | B41: 10 | C41: cost_10 | D41: 21931.01007 | E41: 21107.07235 | F41: 21375.70877 | G41: 21320.5859 | H41: 20773.83749 | I41: 20989.42544 | J41: 20970.50083 | K41: 20675.23301 | M41: 21003.28194 | N41: 20834.11824 | O41: 20675.23301 | Q41: =SUMPRODUCT(M32:M41, array_decile) -> 20929.88949 | R41: =SUMPRODUCT(N32:N41, array_decile) -> 20761.3169 | S41: =SUMPRODUCT(O32:O41, array_decile) -> 20602.98687
A42: 91 | B42: 1 | C42: qaly_10 | D42: 6.195458731 | E42: 6.319367389 | F42: 6.335976499 | G42: 6.346933911 | H42: 6.467807453 | I42: 6.437067415 | J42: 6.485440715 | K42: 6.582431933 | M42: =MMULT(D42:K51,percent_baseline)/100 -> 6.450386798 | N42: =MMULT(D42:K51, percent_s1)/100 -> 6.513231682 | O42: =MMULT(D42:K51, percent_s2)/100 -> 6.582431933
A43: 92 | B43: 2 | C43: qaly_10 | D43: 6.167755946 | E43: 6.291110551 | F43: 6.307645394 | G43: 6.318553811 | H43: 6.43888687 | I43: 6.408284285 | J43: 6.456441285 | K43: 6.552998811 | M43: 6.421544111 | N43: 6.484107986 | O43: 6.552998811
A44: 93 | B44: 3 | C44: qaly_10 | D44: 6.125786635 | E44: 6.248301856 | F44: 6.264724186 | G44: 6.275558375 | H44: 6.395072612 | I44: 6.364678266 | J44: 6.412507576 | K44: 6.508408063 | M44: 6.377847864 | N44: 6.439986015 | O44: 6.508408063
A45: 94 | B45: 4 | C45: qaly_10 | D45: 6.144480298 | E45: 6.267369391 | F45: 6.283841836 | G45: 6.294709087 | H45: 6.414588038 | I45: 6.38410094 | J45: 6.432076207 | K45: 6.528269347 | M45: 6.397310727 | N45: 6.4596385 | O45: 6.528269347
A46: 95 | B46: 5 | C46: qaly_10 | D46: 6.156989884 | E46: 6.280129168 | F46: 6.296635149 | G46: 6.307524525 | H46: 6.427647538 | I46: 6.397098371 | J46: 6.445171312 | K46: 6.541560292 | M46: 6.410335052 | N46: 6.472789719 | O46: 6.541560292
A47: 96 | B47: 6 | C47: qaly_10 | D47: 6.151389314 | E47: 6.274416588 | F47: 6.290907554 | G47: 6.301787025 | H47: 6.42180077 | I47: 6.391279392 | J47: 6.439308604 | K47: 6.535609906 | M47: 6.404504032 | N47: 6.466901889 | O47: 6.535609906
A48: 97 | B48: 7 | C48: qaly_10 | D48: 6.123256376 | E48: 6.245720992 | F48: 6.262136539 | G48: 6.272966253 | H48: 6.392431124 | I48: 6.362049333 | J48: 6.409858887 | K48: 6.505719762 | M48: 6.375213492 | N48: 6.437325976 | O48: 6.505719762
A49: 98 | B49: 8 | C49: qaly_10 | D49: 6.124607206 | E49: 6.247098839 | F49: 6.263518007 | G49: 6.27435011 | H49: 6.393841336 | I49: 6.363452843 | J49: 6.411272944 | K49: 6.507154966 | M49: 6.376619905 | N49: 6.438746092 | O49: 6.507154966
A50: 99 | B50: 9 | C50: qaly_10 | D50: 6.09549428 | E50: 6.217403657 | F50: 6.233744777 | G50: 6.24452539 | H50: 6.363448623 | I50: 6.333204579 | J50: 6.38079737 | K50: 6.476223624 | M50: 6.346309053 | N50: 6.408139927 | O50: 6.476223624
A51: 100 | B51: 10 | C51: qaly_10 | D51: 6.098840549 | E51: 6.220816852 | F51: 6.237166943 | G51: 6.247953474 | H51: 6.366941993 | I51: 6.336681346 | J51: 6.384300264 | K51: 6.479778904 | M51: 6.349793013 | N51: 6.411657831 | O51: 6.479778904 | Q51: =SUMPRODUCT(M42:M51, array_decile) -> 6.450386798 | R51: =SUMPRODUCT(N42:N51, array_decile) -> 6.513231682 | S51: =SUMPRODUCT(O42:O51, array_decile) -> 6.582431933
A52: 101 | B52: 1 | C52: lifeyr_10 | D52: 7.83199453 | E52: 7.946487745 | F52: 7.989743171 | G52: 7.989210392 | H52: 8.117256151 | I52: 8.081501413 | J52: 8.148067922 | K52: 8.246608639 | M52: =MMULT(D52:K61,percent_baseline)/100 -> 8.103833368 | N52: =MMULT(D52:K61, percent_s1)/100 -> 8.17110618 | O52: =MMULT(D52:K61, percent_s2)/100 -> 8.246608639
A53: 102 | B53: 2 | C53: lifeyr_10 | D53: 7.797231104 | E53: 7.911216124 | F53: 7.954279555 | G53: 7.953749141 | H53: 8.08122655 | I53: 8.045630515 | J53: 8.111901559 | K53: 8.210004889 | M53: 8.067863347 | N53: 8.134837559 | O53: 8.210004889
A54: 103 | B54: 3 | C54: lifeyr_10 | D54: 7.745056978 | E54: 7.858279283 | F54: 7.901054561 | G54: 7.900527696 | H54: 8.027152108 | I54: 7.991794259 | J54: 8.057621858 | K54: 8.155068743 | M54: 8.013878322 | N54: 8.080404385 | O54: 8.155068743
A55: 104 | B55: 4 | C55: lifeyr_10 | D55: 7.767826978 | E55: 7.88138215 | F55: 7.924283185 | G55: 7.923754771 | H55: 8.05075145 | I55: 8.015289651 | J55: 8.08131078 | K55: 8.179044153 | M55: 8.037438641 | N55: 8.104160286 | O55: 8.179044153
A56: 105 | B56: 5 | C56: lifeyr_10 | D56: 7.783361632 | E56: 7.8971439 | F56: 7.940130731 | G56: 7.939601261 | H56: 8.066851917 | I56: 8.031319199 | J56: 8.097472362 | K56: 8.195401188 | M56: 8.053512483 | N56: 8.120367564 | O56: 8.195401188
A57: 106 | B57: 6 | C57: lifeyr_10 | D57: 7.776410346 | E57: 7.890090995 | F57: 7.933039435 | G57: 7.932510437 | H57: 8.059647446 | I57: 8.024146463 | J57: 8.090240544 | K57: 8.188081911 | M57: 8.046319926 | N57: 8.113115299 | O57: 8.188081911
A58: 107 | B58: 7 | C58: lifeyr_10 | D58: 7.739659795 | E58: 7.852803201 | F58: 7.89554867 | G58: 7.895022173 | H58: 8.021558345 | I58: 7.986225135 | J58: 8.052006863 | K58: 8.149385841 | M58: 8.00829381 | N58: 8.074773514 | O58: 8.149385841
A59: 108 | B59: 8 | C59: lifeyr_10 | D59: 7.742738656 | E59: 7.855927071 | F59: 7.898689545 | G59: 7.898162838 | H59: 8.024749347 | I59: 7.989402081 | J59: 8.055209977 | K59: 8.152627693 | M59: 8.011479534 | N59: 8.077985684 | O59: 8.152627693
A60: 109 | B60: 9 | C60: lifeyr_10 | D60: 7.704637302 | E60: 7.817268726 | F60: 7.85982077 | G60: 7.859296655 | H60: 7.985260242 | I60: 7.950086917 | J60: 8.015570978 | K60: 8.11250931 | M60: 7.972055729 | N60: 8.038234608 | O60: 8.11250931
A61: 110 | B61: 10 | C61: lifeyr_10 | D61: 7.709638505 | E61: 7.82234304 | F61: 7.864922704 | G61: 7.864398249 | H61: 7.990443601 | I61: 7.955247445 | J61: 8.020774013 | K61: 8.117775268 | M61: 7.977230517 | N61: 8.043452354 | O61: 8.117775268 | Q61: =SUMPRODUCT(M52:M61, array_decile) -> 8.103833368 | R61: =SUMPRODUCT(N52:N61, array_decile) -> 8.17110618 | S61: =SUMPRODUCT(O52:O61, array_decile) -> 8.246608639
A62: 111 | B62: 1 | C62: alldeath_70 | D62: 99.99533353 | E62: 99.99531957 | F62: 99.9953138 | G62: 99.99533311 | H62: 99.99530163 | I62: 99.99531585 | J62: 99.99531789 | K62: 99.99530778 | M62: =MMULT(D62:K71,percent_baseline)/100 -> 99.99531388 | N62: =MMULT(D62:K71, percent_s1)/100 -> 99.99531187 | O62: =MMULT(D62:K71, percent_s2)/100 -> 99.99530778
A63: 112 | B63: 2 | C63: alldeath_70 | D63: 99.99533506 | E63: 99.99532109 | F63: 99.99531533 | G63: 99.99533463 | H63: 99.99530316 | I63: 99.99531738 | J63: 99.99531942 | K63: 99.99530931 | M63: 99.99531541 | N63: 99.9953134 | O63: 99.99530931
A64: 113 | B64: 3 | C64: alldeath_70 | D64: 99.9953376 | E64: 99.99532365 | F64: 99.99531789 | G64: 99.99533718 | H64: 99.99530573 | I64: 99.99531994 | J64: 99.99532198 | K64: 99.99531187 | M64: 99.99531796 | N64: 99.99531596 | O64: 99.99531187
A65: 114 | B65: 4 | C65: alldeath_70 | D65: 99.99533723 | E65: 99.99532328 | F65: 99.99531752 | G65: 99.99533681 | H65: 99.99530535 | I65: 99.99531957 | J65: 99.99532161 | K65: 99.9953115 | M65: 99.99531759 | N65: 99.99531559 | O65: 99.9953115
A66: 115 | B66: 5 | C66: alldeath_70 | D66: 99.99533669 | E66: 99.99532273 | F66: 99.99531697 | G66: 99.99533626 | H66: 99.99530481 | I66: 99.99531902 | J66: 99.99532106 | K66: 99.99531095 | M66: 99.99531705 | N66: 99.99531504 | O66: 99.99531095
A67: 116 | B67: 6 | C67: alldeath_70 | D67: 99.99533809 | E67: 99.99532413 | F67: 99.99531837 | G67: 99.99533766 | H67: 99.99530621 | I67: 99.99532042 | J67: 99.99532246 | K67: 99.99531236 | M67: 99.99531845 | N67: 99.99531645 | O67: 99.99531236
A68: 117 | B68: 7 | C68: alldeath_70 | D68: 99.99533905 | E68: 99.9953251 | F68: 99.99531935 | G68: 99.99533863 | H68: 99.99530719 | I68: 99.99532139 | J68: 99.99532343 | K68: 99.99531333 | M68: 99.99531942 | N68: 99.99531742 | O68: 99.99531333
A69: 118 | B69: 8 | C69: alldeath_70 | D69: 99.99533826 | E69: 99.9953243 | F69: 99.99531854 | G69: 99.99533783 | H69: 99.99530638 | I69: 99.99532059 | J69: 99.99532263 | K69: 99.99531253 | M69: 99.99531862 | N69: 99.99531662 | O69: 99.99531253
A70: 119 | B70: 9 | C70: alldeath_70 | D70: 99.99534047 | E70: 99.99532653 | F70: 99.99532077 | G70: 99.99534005 | H70: 99.99530862 | I70: 99.99532282 | J70: 99.99532486 | K70: 99.99531476 | M70: 99.99532085 | N70: 99.99531885 | O70: 99.99531476
A71: 120 | B71: 10 | C71: alldeath_70 | D71: 99.99534012 | E71: 99.99532617 | F71: 99.99532042 | G71: 99.9953397 | H71: 99.99530826 | I71: 99.99532247 | J71: 99.9953245 | K71: 99.9953144 | M71: 99.99532049 | N71: 99.99531849 | O71: 99.9953144 | Q71: =SUMPRODUCT(M62:M71, array_decile) -> 99.99531388 | R71: =SUMPRODUCT(N62:N71, array_decile) -> 99.99531187 | S71: =SUMPRODUCT(O62:O71, array_decile) -> 99.99530778
A72: 121 | B72: 1 | C72: cvddeath_70 | D72: 41.3482202 | E72: 38.42431964 | F72: 37.07381607 | G72: 38.39119169 | H72: 34.23715676 | I72: 35.87370427 | J72: 33.90256202 | K72: 31.36189437 | M72: =MMULT(D72:K81,percent_baseline)/100 -> 34.81434014 | N72: =MMULT(D72:K81, percent_s1)/100 -> 33.29243995 | O72: =MMULT(D72:K81, percent_s2)/100 -> 31.36189437
A73: 122 | B73: 2 | C73: cvddeath_70 | D73: 41.44245506 | E73: 38.51893596 | F73: 37.16845291 | G73: 38.48580974 | H73: 34.33147937 | I73: 35.9682697 | J73: 33.9968132 | K73: 31.45534248 | M73: 34.90849066 | N73: 33.38632777 | O73: 31.45534248
A74: 123 | B74: 3 | C74: cvddeath_70 | D74: 41.69095299 | E74: 38.76044006 | F74: 37.40610513 | G74: 38.72722404 | H74: 34.55977526 | I74: 36.20217194 | J74: 34.22389328 | K74: 31.6724268 | M74: 35.13790831 | N74: 33.6104679 | O74: 31.6724268
A75: 124 | B75: 4 | C75: cvddeath_70 | D75: 41.59451429 | E75: 38.66553852 | F75: 37.3121062 | G75: 38.63234317 | H75: 34.46807527 | I75: 36.10907847 | J75: 34.13250099 | K75: 31.58362814 | M75: 35.04599436 | N75: 33.51987586 | O75: 31.58362814
A76: 125 | B76: 5 | C76: cvddeath_70 | D76: 41.64178584 | E76: 38.71008224 | F76: 37.35536292 | G76: 38.67685549 | H76: 34.50859102 | I76: 36.15118083 | J76: 34.17269095 | K76: 31.62133411 | M76: 35.08704852 | N76: 33.55945845 | O76: 31.62133411
A77: 126 | B77: 6 | C77: cvddeath_70 | D77: 41.77254185 | E77: 38.83821069 | F77: 37.48195669 | G77: 38.80494874 | H77: 34.63129247 | I77: 36.27623894 | J77: 34.29487309 | K77: 31.73915455 | M77: 35.2101238 | N77: 33.68030204 | O77: 31.73915455
A78: 127 | B78: 7 | C78: cvddeath_70 | D78: 41.86086409 | E78: 38.92025734 | F78: 37.5609136 | G78: 38.88692098 | H78: 34.70341054 | I78: 36.35235747 | J78: 34.36615601 | K78: 31.803925 | M78: 35.28343097 | N78: 33.74988839 | O78: 31.803925
A79: 128 | B79: 8 | C79: cvddeath_70 | D79: 41.98710526 | E79: 39.04693318 | F79: 37.68744096 | G79: 39.01359588 | H79: 34.82886777 | I79: 36.47855988 | J79: 34.49141694 | K79: 31.92719204 | M79: 35.40862218 | N79: 33.87432862 | O79: 31.92719204
A80: 129 | B80: 9 | C80: cvddeath_70 | D80: 42.06213931 | E80: 39.12165275 | F80: 37.76187958 | G80: 39.08830961 | H80: 34.90241876 | I80: 36.55267339 | J80: 34.56483542 | K80: 31.99940058 | M80: 35.48216175 | N80: 33.94731995 | O80: 31.99940058
A81: 130 | B81: 10 | C81: cvddeath_70 | D81: 42.08037245 | E81: 39.13876143 | F81: 37.77839889 | G81: 39.10540434 | H81: 34.9175656 | I81: 36.56863367 | J81: 34.57980899 | K81: 32.01298639 | M81: 35.49750782 | N81: 33.96190659 | O81: 32.01298639 | Q81: =SUMPRODUCT(M72:M81, array_decile) -> 34.81434014 | R81: =SUMPRODUCT(N72:N81, array_decile) -> 33.29243995 | S81: =SUMPRODUCT(O72:O81, array_decile) -> 31.36189437
A82: 131 | B82: 1 | C82: mi_70 | D82: 28.69409684 | E82: 25.14420018 | F82: 25.85276032 | G82: 27.2430077 | H82: 22.39268344 | I82: 23.73987862 | J82: 24.25698312 | K82: 20.89483645 | M82: =MMULT(D82:K91,percent_baseline)/100 -> 23.69116647 | N82: =MMULT(D82:K91, percent_s1)/100 -> 22.53861783 | O82: =MMULT(D82:K91, percent_s2)/100 -> 20.89483645
A83: 132 | B83: 2 | C83: mi_70 | D83: 28.8068566 | E83: 25.24561696 | F83: 25.95648549 | G83: 27.35119759 | H83: 22.48492144 | I83: 23.83665386 | J83: 24.35547785 | K83: 20.98193006 | M83: 23.78765516 | N83: 22.63123754 | O83: 20.98193006
A84: 133 | B84: 3 | C84: mi_70 | D84: 28.79142301 | E84: 25.23839425 | F84: 25.94769075 | G84: 27.33921739 | H84: 22.48342592 | I84: 23.83243345 | J84: 24.35017021 | K84: 20.98326529 | M84: 23.7833129 | N84: 22.62924126 | O84: 20.98326529
A85: 134 | B85: 4 | C85: mi_70 | D85: 28.81829177 | E85: 25.25881355 | F85: 25.9693741 | G85: 27.36341715 | H85: 22.49908399 | I85: 23.85039081 | J85: 24.36902694 | K85: 20.99645124 | M85: 23.80127472 | N85: 22.64523229 | O85: 20.99645124
A86: 135 | B86: 5 | C86: mi_70 | D86: 28.93644388 | E86: 25.36416287 | F86: 26.07735324 | G86: 27.47644983 | H86: 22.59389158 | I86: 23.9504237 | J86: 24.47103332 | K86: 21.08531332 | M86: 23.900935 | N86: 22.74044686 | O86: 21.08531332
A87: 136 | B87: 6 | C87: mi_70 | D87: 29.21098813 | E87: 25.61748265 | F87: 26.33513219 | G87: 27.74265283 | H87: 22.82880443 | I87: 24.19456854 | J87: 24.71860921 | K87: 21.30945262 | M87: 24.1441237 | N87: 22.97580093 | O87: 21.30945262
A88: 137 | B88: 7 | C88: mi_70 | D88: 29.29230359 | E88: 25.68849789 | F88: 26.40824418 | G88: 27.81982126 | H88: 22.89150987 | I88: 24.26137404 | J88: 24.78697287 | K88: 21.36753832 | M88: 24.21068946 | N88: 23.03887394 | O88: 21.36753832
A89: 138 | B89: 8 | C89: mi_70 | D89: 29.40194518 | E89: 25.78768532 | F89: 26.50959531 | G89: 27.92530742 | H89: 22.98194964 | I89: 24.35616427 | J89: 24.88339886 | K89: 21.45299445 | M89: 24.30512859 | N89: 23.12961586 | O89: 21.45299445
A90: 139 | B90: 9 | C90: mi_70 | D90: 29.32533979 | E90: 25.71786595 | F90: 26.43836633 | G90: 27.85139243 | H90: 22.91786324 | I90: 24.28921945 | J90: 24.81538308 | K90: 21.39220207 | M90: 24.23843381 | N90: 23.06534987 | O90: 21.39220207
A91: 140 | B91: 10 | C91: mi_70 | D91: 29.59064291 | E91: 25.96480124 | F91: 26.68923575 | G91: 28.10958982 | H91: 23.14821168 | I91: 24.52795249 | J91: 25.05719957 | K91: 21.61261984 | M91: 24.47611741 | N91: 23.29593724 | O91: 21.61261984 | Q91: =SUMPRODUCT(M82:M91, array_decile) -> 23.69116647 | R91: =SUMPRODUCT(N82:N91, array_decile) -> 22.53861783 | S91: =SUMPRODUCT(O82:O91, array_decile) -> 20.89483645
A92: 141 | B92: 1 | C92: stroke_70 | D92: 17.86127537 | E92: 15.68842923 | F92: 15.66825782 | G92: 13.56693511 | H92: 13.69655605 | I92: 11.93145989 | J92: 11.71811801 | K92: 10.22699499 | M92: =MMULT(D92:K101,percent_baseline)/100 -> 12.85326584 | N92: =MMULT(D92:K101, percent_s1)/100 -> 11.50363401 | O92: =MMULT(D92:K101, percent_s2)/100 -> 10.22699499
A93: 142 | B93: 2 | C93: stroke_70 | D93: 17.94072574 | E93: 15.76195015 | F93: 15.74172083 | G93: 13.63404504 | H93: 13.76407728 | I93: 11.99313768 | J93: 11.77905213 | K93: 10.28248212 | M93: 12.91759167 | N93: 11.56357826 | O93: 10.28248212
A94: 143 | B94: 3 | C94: stroke_70 | D94: 18.12481737 | E94: 15.92851804 | F94: 15.90811963 | G94: 13.78217767 | H94: 13.91337403 | I94: 12.12615878 | J94: 11.91004412 | K94: 10.39891939 | M94: 13.058394 | N94: 11.69214574 | O94: 10.39891939
A95: 144 | B95: 4 | C95: stroke_70 | D95: 17.95058516 | E95: 15.76694821 | F95: 15.7466759 | G95: 13.63478466 | H95: 13.76506041 | I95: 11.99102388 | J95: 11.77659866 | K95: 10.27789514 | M95: 12.91745447 | N95: 11.56101147 | O95: 10.27789514
A96: 145 | B96: 5 | C96: stroke_70 | D96: 17.94266907 | E96: 15.76111671 | F96: 15.74086276 | G96: 13.63076995 | H96: 13.76094161 | I96: 11.98823778 | J96: 11.77396068 | K96: 10.27620801 | M96: 12.91383185 | N96: 11.55843943 | O96: 10.27620801
A97: 146 | B97: 6 | C97: stroke_70 | D97: 17.95427588 | E97: 15.77323938 | F97: 15.75298914 | G97: 13.64315508 | H97: 13.77331879 | I97: 12.00061729 | J97: 11.7863237 | K97: 10.28833838 | M97: 12.92603554 | N97: 11.57067486 | O97: 10.28833838
A98: 147 | B98: 7 | C98: stroke_70 | D98: 17.96073515 | E98: 15.7747857 | F98: 15.75449222 | G98: 13.64044664 | H98: 13.77085178 | I98: 11.99510718 | J98: 11.78048448 | K98: 10.2804687 | M98: 12.92251543 | N98: 11.56476015 | O98: 10.2804687
A99: 148 | B99: 8 | C99: stroke_70 | D99: 18.08430067 | E99: 15.88927922 | F99: 15.86889564 | G99: 13.74483178 | H99: 13.87589218 | I99: 12.09077841 | J99: 11.87495612 | K99: 10.36612789 | M99: 13.0223317 | N99: 11.65759892 | O99: 10.36612789
A100: 149 | B100: 9 | C100: stroke_70 | D100: 18.22767289 | E100: 16.01975522 | F100: 15.999247 | G100: 13.86168637 | H100: 13.99360932 | I100: 12.19639834 | J100: 11.97906148 | K100: 10.45931941 | M100: 13.13367668 | N100: 11.75985089 | O100: 10.45931941
A101: 150 | B101: 10 | C101: stroke_70 | D101: 18.14514535 | E101: 15.94336818 | F101: 15.92292084 | G101: 13.79211716 | H101: 13.92359876 | I101: 12.13269155 | J101: 11.91616082 | K101: 10.40233454 | M101: 13.06716998 | N101: 11.69804146 | O101: 10.40233454 | Q101: =SUMPRODUCT(M92:M101, array_decile) -> 12.85326584 | R101: =SUMPRODUCT(N92:N101, array_decile) -> 11.50363401 | S101: =SUMPRODUCT(O92:O101, array_decile) -> 10.22699499
A102: 151 | B102: 1 | C102: hf_70 | D102: 12.11188249 | E102: 12.55104568 | F102: 11.1415134 | G102: 12.58649069 | H102: 11.48213516 | I102: 12.92820105 | J102: 11.5668455 | K102: 11.81521428 | M102: =MMULT(D102:K111,percent_baseline)/100 -> 11.84379187 | N102: =MMULT(D102:K111, percent_s1)/100 -> 11.88413366 | O102: =MMULT(D102:K111, percent_s2)/100 -> 11.81521428
A103: 152 | B103: 2 | C103: hf_70 | D103: 12.07521369 | E103: 12.51238526 | F103: 11.10926717 | G103: 12.54766991 | H103: 11.44833429 | I103: 12.88783785 | J103: 11.53265827 | K103: 11.77989515 | M103: 11.80834697 | N103: 11.84850352 | O103: 11.77989515
A104: 153 | B104: 3 | C104: hf_70 | D104: 12.41995796 | E104: 12.86640744 | F104: 11.43287093 | G104: 12.90243321 | H104: 11.77946081 | I104: 13.24968746 | J104: 11.86563838 | K104: 12.11827072 | M104: 12.14721852 | N104: 12.18829424 | O104: 12.11827072
A105: 154 | B105: 4 | C105: hf_70 | D105: 12.28397664 | E105: 12.72780825 | F105: 11.30299982 | G105: 12.76362653 | H105: 11.6473918 | I105: 13.10890888 | J105: 11.73303187 | K105: 11.9841086 | M105: 12.01294076 | N105: 12.05374195 | O105: 11.9841086
A106: 155 | B106: 5 | C106: hf_70 | D106: 12.28799955 | E106: 12.73189077 | F106: 11.30686691 | G106: 12.7677136 | H106: 11.65131763 | I106: 13.11303782 | J106: 11.73697161 | K106: 11.98808756 | M106: 12.01691957 | N106: 12.05772876 | O106: 11.98808756
A107: 156 | B107: 6 | C107: hf_70 | D107: 12.27539761 | E107: 12.71892644 | F107: 11.2951459 | G107: 12.75472101 | H107: 11.63927488 | I107: 13.09978038 | J107: 11.72485093 | K107: 11.97574327 | M107: 12.00456521 | N107: 12.04533273 | O107: 11.97574327
A108: 157 | B108: 7 | C108: hf_70 | D108: 12.19634916 | E108: 12.63836322 | F108: 11.21965074 | G108: 12.67403795 | H108: 11.56249901 | I108: 13.01796021 | J108: 11.64776227 | K108: 11.89775033 | M108: 11.92650836 | N108: 11.96711518 | O108: 11.89775033
A109: 158 | B109: 8 | C109: hf_70 | D109: 12.34917655 | E109: 12.79547702 | F109: 11.36275856 | G109: 12.83149471 | H109: 11.70905805 | I109: 13.17870039 | J109: 11.79517293 | K109: 12.04764278 | M109: 12.07663791 | N109: 12.11766444 | O109: 12.04764278
A110: 159 | B110: 9 | C110: hf_70 | D110: 12.31834021 | E110: 12.76323163 | F110: 11.33501176 | G110: 12.79913536 | H110: 11.68023099 | I110: 13.14524071 | J110: 11.76607647 | K110: 12.0177548 | M110: 12.04665428 | N110: 12.08755386 | O110: 12.0177548
A111: 160 | B111: 10 | C111: hf_70 | D111: 12.24890272 | E111: 12.69155182 | F111: 11.2706209 | G111: 12.72727568 | H111: 11.61405416 | I111: 13.07165572 | J111: 11.69945792 | K111: 11.94984672 | M111: 11.97861579 | N111: 12.01929978 | O111: 11.94984672 | Q111: =SUMPRODUCT(M102:M111, array_decile) -> 11.84379187 | R111: =SUMPRODUCT(N102:N111, array_decile) -> 11.88413366 | S111: =SUMPRODUCT(O102:O111, array_decile) -> 11.81521428
A112: 161 | B112: 1 | C112: ihd_70 | D112: 17.86295852 | E112: 18.40759412 | F112: 14.80904717 | G112: 16.84555667 | H112: 15.05568674 | I112: 17.25125657 | J112: 13.68210474 | K112: 13.85305809 | M112: =MMULT(D112:K121,percent_baseline)/100 -> 15.12807952 | N112: =MMULT(D112:K121, percent_s1)/100 -> 14.58033721 | O112: =MMULT(D112:K121, percent_s2)/100 -> 13.85305809
A113: 162 | B113: 2 | C113: ihd_70 | D113: 17.72799175 | E113: 18.26942456 | F113: 14.69300419 | G113: 16.71671168 | H113: 14.93805414 | I113: 17.11994872 | J113: 13.57346353 | K113: 13.74327939 | M113: 15.01021776 | N113: 14.46591201 | O113: 13.74327939
A114: 163 | B114: 3 | C114: ihd_70 | D114: 17.63787712 | E114: 18.1766351 | F114: 14.61815613 | G114: 16.63163553 | H114: 14.86195843 | I114: 17.03285716 | J114: 13.50434258 | K114: 13.67328708 | M114: 14.93381002 | N114: 14.39225122 | O114: 13.67328708
A115: 164 | B115: 4 | C115: ihd_70 | D115: 17.72111725 | E115: 18.26255625 | F115: 14.68623145 | G115: 16.709844 | H115: 14.93126357 | I115: 17.11307533 | J115: 13.56679681 | K115: 13.73659388 | M115: 15.00346031 | N115: 14.45918004 | O115: 13.73659388
A116: 165 | B116: 5 | C116: ihd_70 | D116: 17.703975 | E116: 18.24439588 | F116: 14.67451723 | G116: 16.69456708 | H116: 14.91913165 | I116: 17.09706065 | J116: 13.55693613 | K116: 13.72645813 | M116: 14.99112239 | N116: 14.44779966 | O116: 13.72645813
A117: 166 | B117: 6 | C117: ihd_70 | D117: 17.89241005 | E117: 18.43718167 | F117: 14.83707168 | G117: 16.87466047 | H117: 15.08387014 | I117: 17.28051387 | J117: 13.70930032 | K117: 13.88039045 | M117: 15.1561388 | N117: 14.60810946 | O117: 13.88039045
A118: 167 | B118: 7 | C118: ihd_70 | D118: 17.67104176 | E118: 18.2109921 | F118: 14.64458333 | G118: 16.66256159 | H118: 14.88893025 | I118: 17.0646773 | J118: 13.52828851 | K118: 13.69760838 | M118: 14.96094311 | N118: 14.41817724 | O118: 13.69760838
A119: 168 | B119: 8 | C119: ihd_70 | D119: 17.64024969 | E119: 18.17966662 | F119: 14.6172231 | G119: 16.63282966 | H119: 14.86126505 | I119: 17.03451268 | J119: 13.50238403 | K119: 13.67147649 | M119: 14.93329589 | N119: 14.39116468 | O119: 13.67147649
A120: 169 | B120: 9 | C120: ihd_70 | D120: 17.54004254 | E120: 18.07714551 | F120: 14.53078719 | G120: 16.53705967 | H120: 14.77366638 | I120: 16.93695538 | J120: 13.42137497 | K120: 13.58963213 | M120: 14.84555168 | N120: 14.30592541 | O120: 13.58963213
A121: 170 | B121: 10 | C121: ihd_70 | D121: 17.62525023 | E121: 18.16366117 | F121: 14.60752815 | G121: 16.61966478 | H121: 14.85116582 | I121: 17.02062356 | J121: 13.49447358 | K121: 13.66330224 | M121: 14.92298128 | N121: 14.3817831 | O121: 13.66330224 | Q121: =SUMPRODUCT(M112:M121, array_decile) -> 15.12807952 | R121: =SUMPRODUCT(N112:N121, array_decile) -> 14.58033721 | S121: =SUMPRODUCT(O112:O121, array_decile) -> 13.85305809
A122: 171 | B122: 1 | C122: blind_70 | D122: 7.524417881 | E122: 5.623129537 | F122: 7.698759282 | G122: 6.874667454 | H122: 5.773970802 | I122: 5.129687634 | J122: 7.0198165 | K122: 5.253118417 | M122: =MMULT(D122:K131,percent_baseline)/100 -> 6.193814404 | N122: =MMULT(D122:K131, percent_s1)/100 -> 5.772044366 | O122: =MMULT(D122:K131, percent_s2)/100 -> 5.253118417
A123: 172 | B123: 2 | C123: blind_70 | D123: 7.511447113 | E123: 5.613243096 | F123: 7.685512326 | G123: 6.862735851 | H123: 5.763834842 | I123: 5.120623209 | J123: 7.007651411 | K123: 5.243847543 | M123: 6.183005452 | N123: 5.761921517 | O123: 5.243847543
A124: 173 | B124: 3 | C124: blind_70 | D124: 7.54009192 | E124: 5.635249025 | F124: 7.714745992 | G124: 6.889156682 | H124: 5.786382061 | I124: 5.140840778 | J124: 7.034573084 | K124: 5.264514997 | M124: 6.206994107 | N124: 5.784431668 | O124: 5.264514997
A125: 174 | B125: 4 | C125: blind_70 | D125: 7.583033564 | E125: 5.668162999 | F125: 7.758580085 | G125: 6.928732429 | H125: 5.820111476 | I125: 5.171063066 | J125: 7.074906208 | K125: 5.295414067 | M125: 6.242904315 | N125: 5.818109505 | O125: 5.295414067
A126: 175 | B126: 5 | C126: blind_70 | D126: 7.548644426 | E126: 5.641685608 | F126: 7.723490592 | G126: 6.896990335 | H126: 5.792987854 | I126: 5.146722319 | J126: 7.042567718 | K126: 5.270535591 | M126: 6.214064929 | N126: 5.791032601 | O126: 5.270535591
A127: 176 | B127: 6 | C127: blind_70 | D127: 7.557252883 | E127: 5.648074555 | F127: 7.732304893 | G127: 6.904835244 | H127: 5.799551326 | I127: 5.152542015 | J127: 7.050582717 | K127: 5.276497448 | M127: 6.221121054 | N127: 5.797596933 | O127: 5.276497448
A128: 177 | B128: 7 | C128: blind_70 | D128: 7.576971371 | E128: 5.663658836 | F128: 7.752374386 | G128: 6.923204174 | H128: 5.815484213 | I128: 5.166960921 | J128: 7.069258802 | K128: 5.29121146 | M128: 6.237932126 | N128: 5.813482725 | O128: 5.29121146
A129: 178 | B129: 8 | C129: blind_70 | D129: 7.611668723 | E129: 5.689803244 | F129: 7.78784826 | G129: 6.954995929 | H129: 5.842312749 | I129: 5.190860797 | J129: 7.101701221 | K129: 5.315673728 | M129: 6.266640022 | N129: 5.840291123 | O129: 5.315673728
A130: 179 | B130: 9 | C130: blind_70 | D130: 7.612167517 | E130: 5.69029633 | F130: 7.788344356 | G130: 6.955500198 | H130: 5.842808782 | I130: 5.191341009 | J130: 7.102204907 | K130: 5.316157631 | M130: 6.267133026 | N130: 5.840781825 | O130: 5.316157631
A131: 180 | B131: 10 | C131: blind_70 | D131: 7.619393364 | E131: 5.695746202 | F131: 7.795731129 | G131: 6.962123375 | H131: 5.848400906 | I131: 5.196323984 | J131: 7.108963109 | K131: 5.321257619 | M131: 6.27311508 | N131: 5.846369392 | O131: 5.321257619 | Q131: =SUMPRODUCT(M122:M131, array_decile) -> 6.193814404 | R131: =SUMPRODUCT(N122:N131, array_decile) -> 5.772044366 | S131: =SUMPRODUCT(O122:O131, array_decile) -> 5.253118417
A132: 181 | B132: 1 | C132: amp_70 | D132: 5.562290979 | E132: 3.85918161 | F132: 5.903718796 | G132: 5.082665072 | H132: 4.071974987 | I132: 3.458610038 | J132: 5.273448809 | K132: 3.634060686 | M132: =MMULT(D132:K141,percent_baseline)/100 -> 4.470966593 | N132: =MMULT(D132:K141, percent_s1)/100 -> 4.097210584 | O132: =MMULT(D132:K141, percent_s2)/100 -> 3.634060686
A133: 182 | B133: 2 | C133: amp_70 | D133: 5.626281134 | E133: 3.909127821 | F133: 5.970089886 | G133: 5.143078908 | H133: 4.123890499 | I133: 3.50466527 | J133: 5.33531853 | K133: 3.681850388 | M133: 4.525865827 | N133: 4.149039737 | O133: 3.681850388
A134: 183 | B134: 3 | C134: amp_70 | D134: 5.648527368 | E134: 3.933493254 | F134: 5.991527059 | G134: 5.166274854 | H134: 4.148206217 | I134: 3.528910047 | J134: 5.358164679 | K134: 3.70618444 | M134: 4.549372679 | N134: 4.173015697 | O134: 3.70618444
A135: 184 | B135: 4 | C135: amp_70 | D135: 5.574410867 | E135: 3.869155998 | F135: 5.916186956 | G135: 5.094253566 | H135: 4.082260185 | I135: 3.467959387 | J135: 5.285254815 | K135: 3.64369052 | M135: 4.481692771 | N135: 4.10746754 | O135: 3.64369052
A136: 185 | B136: 5 | C136: amp_70 | D136: 5.618636374 | E136: 3.90461514 | F136: 5.961716095 | G136: 5.136399935 | H136: 4.119030479 | I136: 3.50077499 | J136: 5.328263493 | K136: 3.67769244 | M136: 4.520210315 | N136: 4.144075849 | O136: 3.67769244
A137: 186 | B137: 6 | C137: amp_70 | D137: 5.652987602 | E137: 3.933328197 | F137: 5.997036613 | G137: 5.169317387 | H137: 4.148546683 | I137: 3.527869181 | J137: 5.361762487 | K137: 3.705514177 | M137: 4.550902495 | N137: 4.173530203 | O137: 3.705514177
A138: 187 | B138: 7 | C138: amp_70 | D138: 5.576151122 | E138: 3.874160623 | F138: 5.917009257 | G138: 5.097145366 | H138: 4.08699048 | I138: 3.473362459 | J138: 5.287708567 | K138: 3.648938591 | M138: 4.485467057 | N138: 4.111964603 | O138: 3.648938591
A139: 188 | B139: 8 | C139: amp_70 | D139: 5.595056397 | E139: 3.891465504 | F139: 5.936041374 | G139: 5.115776667 | H139: 4.104601643 | I139: 3.489987718 | J139: 5.306463108 | K139: 3.665878938 | M139: 4.503299246 | N139: 4.129448227 | O139: 3.665878938
A140: 189 | B140: 9 | C140: amp_70 | D140: 5.422039546 | E140: 3.763100717 | F140: 5.754554902 | G140: 4.954908569 | H140: 3.97041065 | I140: 3.372814923 | J140: 5.140726124 | K140: 3.543766584 | M140: 4.359002795 | N140: 3.994940119 | O140: 3.543766584
A141: 190 | B141: 10 | C141: amp_70 | D141: 5.457297607 | E141: 3.78717172 | F141: 5.792056699 | G141: 4.987012558 | H141: 3.995875398 | I141: 3.394269182 | J141: 5.17408485 | K141: 3.566365721 | M141: 4.387094668 | N141: 4.020577772 | O141: 3.566365721 | Q141: =SUMPRODUCT(M132:M141, array_decile) -> 4.470966593 | R141: =SUMPRODUCT(N132:N141, array_decile) -> 4.097210584 | S141: =SUMPRODUCT(O132:O141, array_decile) -> 3.634060686
A142: 191 | B142: 1 | C142: ulcer_70 | D142: 3.676288854 | E142: 2.796200857 | F142: 3.830249489 | G142: 3.835564252 | H142: 2.92701365 | I142: 2.901749186 | J142: 3.991579903 | K142: 3.02982596 | M142: =MMULT(D142:K151,percent_baseline)/100 -> 3.343865487 | N142: =MMULT(D142:K151, percent_s1)/100 -> 3.236181512 | O142: =MMULT(D142:K151, percent_s2)/100 -> 3.02982596
A143: 192 | B143: 2 | C143: ulcer_70 | D143: 3.628354834 | E143: 2.75954002 | F143: 3.780357344 | G143: 3.785604588 | H143: 2.888668728 | I143: 2.86372929 | J143: 3.939640452 | K143: 2.990159488 | M143: 3.300192624 | N143: 3.193882255 | O143: 2.990159488
A144: 193 | B144: 3 | C144: ulcer_70 | D144: 3.669989794 | E144: 2.7915769 | F144: 3.823648364 | G144: 3.828952654 | H144: 2.922146508 | I144: 2.896929174 | J144: 3.984659531 | K144: 3.024766224 | M144: 3.338197377 | N144: 3.230722151 | O144: 3.024766224
A145: 194 | B145: 4 | C145: ulcer_70 | D145: 3.69860676 | E145: 2.814043589 | F145: 3.853299372 | G145: 3.85863914 | H145: 2.945553601 | I145: 2.920155368 | J145: 4.015381018 | K145: 3.048905909 | M145: 3.364482637 | N145: 3.256272296 | O145: 3.048905909
A146: 195 | B146: 5 | C146: ulcer_70 | D146: 3.744642904 | E146: 2.849534751 | F146: 3.901152383 | G146: 3.906554726 | H146: 2.982629644 | I146: 2.956925801 | J146: 4.065129211 | K146: 3.08722323 | M146: 3.406530062 | N146: 3.297041074 | O146: 3.08722323
A147: 196 | B147: 6 | C147: ulcer_70 | D147: 3.716081831 | E147: 2.827172577 | F147: 3.871540967 | G147: 3.876907223 | H147: 2.959324182 | I147: 2.933801903 | J147: 4.034427449 | K147: 3.063181928 | M147: 3.380317052 | N147: 3.271572217 | O147: 3.063181928
A148: 197 | B148: 7 | C148: ulcer_70 | D148: 3.71319132 | E148: 2.825110726 | F148: 3.868499022 | G148: 3.87386002 | H148: 2.957143459 | I148: 2.931644262 | J148: 4.031224965 | K148: 3.060906667 | M148: 3.37773838 | N148: 3.269097693 | O148: 3.060906667
A149: 198 | B149: 8 | C149: ulcer_70 | D149: 3.739948511 | E149: 2.845727593 | F149: 3.896313829 | G149: 3.901711249 | H149: 2.978683272 | I149: 2.953006103 | J149: 4.060142773 | K149: 3.083169338 | M149: 3.402172772 | N149: 3.292787634 | O149: 3.083169338
A150: 199 | B150: 9 | C150: ulcer_70 | D150: 3.73467093 | E150: 2.841742397 | F150: 3.890809759 | G150: 3.896199359 | H150: 2.97450642 | I150: 2.948866284 | J150: 4.05440137 | K150: 3.078841713 | M150: 3.3973834 | N150: 3.288156613 | O150: 3.078841713
A151: 200 | B151: 10 | C151: ulcer_70 | D151: 3.752478131 | E151: 2.855733186 | F151: 3.909257392 | G151: 3.914668959 | H151: 2.98908144 | I151: 2.963328936 | J151: 4.073511556 | K151: 3.093871709 | M151: 3.413743406 | N151: 3.304060944 | O151: 3.093871709 | Q151: =SUMPRODUCT(M142:M151, array_decile) -> 3.343865487 | R151: =SUMPRODUCT(N142:N151, array_decile) -> 3.236181512 | S151: =SUMPRODUCT(O142:O151, array_decile) -> 3.02982596
A152: 201 | B152: 1 | C152: renal_70 | D152: 2.145700237 | E152: 2.1894995 | F152: 1.672914089 | G152: 1.881769927 | H152: 1.677400646 | I152: 1.911988937 | J152: 1.445046554 | K152: 1.456716582 | M152: =MMULT(D152:K161,percent_baseline)/100 -> 1.668631415 | N152: =MMULT(D152:K161, percent_s1)/100 -> 1.568961944 | O152: =MMULT(D152:K161, percent_s2)/100 -> 1.456716582
A153: 202 | B153: 2 | C153: renal_70 | D153: 2.137990938 | E153: 2.181427811 | F153: 1.668665313 | G153: 1.87609725 | H153: 1.673123104 | I153: 1.906096203 | J153: 1.442149315 | K153: 1.453755451 | M153: 1.664282966 | N153: 1.565292209 | O153: 1.453755451
A154: 203 | B154: 3 | C154: renal_70 | D154: 2.145638491 | E154: 2.18918224 | F154: 1.675121476 | G154: 1.883090348 | H154: 1.679591037 | I154: 1.913165372 | J154: 1.447990171 | K154: 1.459628752 | M154: 1.670711076 | N154: 1.571462399 | O154: 1.459628752
A155: 204 | B155: 4 | C155: renal_70 | D155: 2.042191769 | E155: 2.083896862 | F155: 1.592026163 | G155: 1.790887249 | H155: 1.596298017 | I155: 1.81966026 | J155: 1.375061888 | K155: 1.386173601 | M155: 1.587948627 | N155: 1.493047893 | O155: 1.386173601
A156: 205 | B156: 5 | C156: renal_70 | D156: 1.998218838 | E156: 2.039334013 | F156: 1.555023555 | G156: 1.750663109 | H156: 1.559223668 | I156: 1.778989311 | J156: 1.341859164 | K156: 1.35276858 | M156: 1.551191863 | N156: 1.457831501 | O156: 1.35276858
A157: 206 | B157: 6 | C157: renal_70 | D157: 2.062650215 | E157: 2.105126646 | F157: 1.604753448 | G157: 1.80688643 | H157: 1.609092953 | I157: 1.836152586 | J157: 1.384520409 | K157: 1.395791175 | M157: 1.600795989 | N157: 1.504339334 | O157: 1.395791175
A158: 207 | B158: 7 | C158: renal_70 | D158: 1.990941197 | E158: 2.031672341 | F158: 1.551478304 | G158: 1.745565885 | H158: 1.555646789 | I158: 1.773654466 | J158: 1.339815211 | K158: 1.350652913 | M158: 1.54755702 | N158: 1.45493561 | O158: 1.350652913
A159: 208 | B159: 8 | C159: renal_70 | D159: 2.022802345 | E159: 2.064227731 | F159: 1.575839732 | G159: 1.773240295 | H159: 1.580079342 | I159: 1.801808385 | J159: 1.360569769 | K159: 1.371591845 | M159: 1.571853923 | N159: 1.477652846 | O159: 1.371591845
A160: 209 | B160: 9 | C160: renal_70 | D160: 1.908773044 | E160: 1.948351161 | F160: 1.482710755 | G160: 1.670654884 | H160: 1.486743317 | I160: 1.697884761 | J160: 1.278193862 | K160: 1.288653619 | M160: 1.479195966 | N160: 1.389510208 | O160: 1.288653619
A161: 210 | B161: 10 | C161: renal_70 | D161: 1.994369587 | E161: 2.035236519 | F161: 1.553478016 | G161: 1.748187615 | H161: 1.557659683 | I161: 1.776367481 | J161: 1.341158301 | K161: 1.352028937 | M161: 1.549557142 | N161: 1.456639741 | O161: 1.352028937 | Q161: =SUMPRODUCT(M152:M161, array_decile) -> 1.668631415 | R161: =SUMPRODUCT(N152:N161, array_decile) -> 1.568961944 | S161: =SUMPRODUCT(O152:O161, array_decile) -> 1.456716582
A162: 211 | B162: 1 | C162: alldeath_10 | D162: 41.71302865 | E162: 40.08797185 | F162: 39.4904117 | G162: 39.99744019 | H162: 37.84065756 | I162: 38.54626351 | J162: 37.83236618 | K162: 36.44569497 | M162: =MMULT(D162:K171,percent_baseline)/100 -> 38.22372496 | N162: =MMULT(D162:K171, percent_s1)/100 -> 37.41911781 | O162: =MMULT(D162:K171, percent_s2)/100 -> 36.44569497
A163: 212 | B163: 2 | C163: alldeath_10 | D163: 42.02632798 | E163: 40.39478881 | F163: 39.79494278 | G163: 40.30390752 | H163: 38.13913842 | I163: 38.84728633 | J163: 38.13081756 | K163: 36.73933962 | M163: 38.52373911 | N163: 37.71621694 | O163: 36.73933962
A164: 213 | B164: 3 | C164: alldeath_10 | D164: 42.90099242 | E164: 41.26870145 | F164: 40.66799896 | G164: 41.17771064 | H164: 39.0081767 | I164: 39.71834262 | J164: 38.99982944 | K164: 37.60304962 | M164: 39.39286274 | N164: 38.58310346 | O164: 37.60304962
A165: 214 | B165: 4 | C165: alldeath_10 | D165: 42.58165166 | E165: 40.95586269 | F165: 40.35778536 | G165: 40.86526152 | H165: 38.70586001 | I165: 39.41253208 | J165: 38.69755485 | K165: 37.30814846 | M165: 39.08904139 | N165: 38.28323581 | O165: 37.30814846
A166: 215 | B166: 5 | C166: alldeath_10 | D166: 42.38585503 | E166: 40.74299778 | F166: 40.13864674 | G166: 40.65144571 | H166: 38.46947107 | I166: 39.18350381 | J166: 38.46107961 | K166: 37.05732733 | M166: 38.85670812 | N166: 38.04252499 | O166: 37.05732733
A167: 216 | B167: 6 | C167: alldeath_10 | D167: 42.39850754 | E167: 40.75747801 | F167: 40.15393271 | G167: 40.66604342 | H167: 38.48734757 | I167: 39.20020724 | J167: 38.47897046 | K167: 37.07780142 | M167: 38.87416652 | N167: 38.06130171 | O167: 37.07780142
A168: 217 | B168: 7 | C168: alldeath_10 | D168: 43.01163455 | E168: 41.37062672 | F168: 40.76670635 | G168: 41.27914866 | H168: 39.09799562 | I168: 39.81196176 | J168: 39.08960375 | K168: 37.68538151 | M168: 39.4847498 | N168: 38.67066612 | O168: 37.68538151
A169: 218 | B169: 8 | C169: alldeath_10 | D169: 43.04713633 | E169: 41.40456157 | F169: 40.79993301 | G169: 41.31298086 | H169: 39.12888374 | I169: 39.84392 | J169: 39.12047865 | K169: 37.71383782 | M169: 39.51598316 | N169: 38.70069228 | O169: 37.71383782
A170: 219 | B170: 9 | C170: alldeath_10 | D170: 43.59081042 | E170: 41.9438203 | F170: 41.3374307 | G170: 41.8519775 | H170: 39.66114207 | I170: 40.37848667 | J170: 39.65270926 | K170: 38.24123843 | M170: 40.04926696 | N170: 39.231362 | O170: 38.24123843
A171: 220 | B171: 10 | C171: alldeath_10 | D171: 43.47070218 | E171: 41.81901033 | F171: 41.21095251 | G171: 41.72691254 | H171: 39.53025507 | I171: 40.24944801 | J171: 39.5218009 | K171: 38.1068784 | M171: 39.91950936 | N171: 39.09949564 | O171: 38.1068784 | Q171: =SUMPRODUCT(M162:M171, array_decile) -> 38.22372496 | R171: =SUMPRODUCT(N162:N171, array_decile) -> 37.41911781 | S171: =SUMPRODUCT(O162:O171, array_decile) -> 36.44569497
A172: 221 | B172: 1 | C172: cvddeath_10 | D172: 20.3052128 | E172: 18.32090886 | F172: 17.49056028 | G172: 18.30561177 | H172: 15.628746 | I172: 16.6280766 | J172: 15.67709823 | K172: 14.10321637 | M172: =MMULT(D172:K181,percent_baseline)/100 -> 16.14720917 | N172: =MMULT(D172:K181, percent_s1)/100 -> 15.22920088 | O172: =MMULT(D172:K181, percent_s2)/100 -> 14.10321637
A173: 222 | B173: 2 | C173: cvddeath_10 | D173: 20.48376856 | E173: 18.48848021 | F173: 17.65328209 | G173: 18.4730952 | H173: 15.7799862 | I173: 16.78558843 | J173: 15.82864795 | K173: 14.24435457 | M173: 16.30132628 | N173: 15.37756216 | O173: 14.24435457
A174: 223 | B174: 3 | C174: cvddeath_10 | D174: 20.90720375 | E174: 18.88042857 | F174: 18.03145713 | G174: 18.864793 | H174: 16.12600789 | I174: 17.14908643 | J174: 16.17552683 | K174: 14.56272649 | M174: 16.65565743 | N174: 15.7158935 | O174: 14.56272649
A175: 224 | B175: 4 | C175: cvddeath_10 | D175: 20.79332616 | E175: 18.7780658 | F175: 17.93385852 | G175: 18.76251833 | H175: 16.03892225 | I175: 17.05639015 | J175: 16.0881716 | K175: 14.48403735 | M175: 16.56555178 | N175: 15.63093578 | O175: 14.48403735
A176: 225 | B176: 5 | C176: cvddeath_10 | D176: 20.68324351 | E176: 18.66816093 | F176: 17.82450811 | G176: 18.65262103 | H176: 15.93193803 | I176: 16.94793669 | J176: 15.98110531 | K176: 14.38024346 | M176: 16.45849483 | N176: 15.52520965 | O176: 14.38024346
A177: 226 | B177: 6 | C177: cvddeath_10 | D177: 20.80409653 | E177: 18.78431972 | F177: 17.93848327 | G177: 18.76874081 | H177: 16.04049392 | I177: 17.059495 | J177: 16.08981169 | K177: 14.48376005 | M177: 16.56828343 | N177: 15.63224465 | O177: 14.48376005
A178: 227 | B178: 7 | C178: cvddeath_10 | D178: 21.05016762 | E178: 19.0096622 | F178: 18.15477647 | G178: 18.99391855 | H178: 16.23572238 | I178: 17.26616097 | J178: 16.2856004 | K178: 14.66096601 | M178: 16.76899147 | N178: 15.822488 | O178: 14.66096601
A179: 228 | B179: 8 | C179: cvddeath_10 | D179: 21.12455609 | E179: 19.07642885 | F179: 18.21818466 | G179: 19.06062418 | H179: 16.29129099 | I179: 17.3259869 | J179: 16.3413774 | K179: 14.70985386 | M179: 16.82659762 | N179: 15.8762136 | O179: 14.70985386
A180: 229 | B180: 9 | C180: cvddeath_10 | D180: 21.394306 | E180: 19.33046081 | F180: 18.46526487 | G180: 19.31453015 | H180: 16.52190239 | I180: 17.56559506 | J180: 16.57243284 | K180: 14.92597172 | M180: 17.06133097 | N180: 16.10269279 | O180: 14.92597172
A181: 230 | B181: 10 | C181: cvddeath_10 | D181: 21.35437706 | E181: 19.29224019 | F181: 18.42787836 | G181: 19.27632424 | H181: 16.48666081 | I181: 17.52915374 | J181: 16.53713055 | K181: 14.89278915 | M181: 17.0256346 | N181: 16.0680926 | O181: 14.89278915 | Q181: =SUMPRODUCT(M172:M181, array_decile) -> 16.14720917 | R181: =SUMPRODUCT(N172:N181, array_decile) -> 15.22920088 | S181: =SUMPRODUCT(O172:O181, array_decile) -> 14.10321637
A182: 231 | B182: 1 | C182: mi_10 | D182: 17.4884333 | E182: 14.8858627 | F182: 15.29301915 | G182: 16.23255697 | H182: 12.86891647 | I182: 13.78179424 | J182: 14.05598941 | K182: 11.83970198 | M182: =MMULT(D182:K191,percent_baseline)/100 -> 13.77786955 | N182: =MMULT(D182:K191, percent_s1)/100 -> 12.96293604 | O182: =MMULT(D182:K191, percent_s2)/100 -> 11.83970198
A183: 232 | B183: 2 | C183: mi_10 | D183: 17.6501891 | E183: 15.02715987 | F183: 15.43757929 | G183: 16.38455694 | H183: 12.99368615 | I183: 13.91412099 | J183: 14.19056096 | K183: 11.95579191 | M183: 13.90995618 | N183: 13.08830825 | O183: 11.95579191
A184: 233 | B184: 3 | C184: mi_10 | D184: 17.77843296 | E184: 15.14555676 | F184: 15.55765752 | G184: 16.50831048 | H184: 13.1029045 | I184: 14.02767458 | J184: 14.30535718 | K184: 12.05973798 | M184: 14.02300351 | N184: 13.19755593 | O184: 12.05973798
A185: 234 | B185: 4 | C185: mi_10 | D185: 17.78125683 | E185: 15.15107755 | F185: 15.5627937 | G185: 16.51250382 | H185: 13.11008849 | I185: 14.03415845 | J185: 14.31161325 | K185: 12.06759511 | M185: 14.02935007 | N185: 13.2045453 | O185: 12.06759511
A186: 235 | B186: 5 | C186: mi_10 | D186: 17.7660362 | E186: 15.12713621 | F186: 15.54008356 | G186: 16.49283183 | H186: 13.0809091 | I186: 14.0071626 | J186: 14.2853355 | K186: 12.03636746 | M186: 14.00284415 | N186: 13.17602672 | O186: 12.03636746
A187: 236 | B187: 6 | C187: mi_10 | D187: 17.95337884 | E187: 15.29605951 | F187: 15.71203234 | G187: 16.67155359 | H187: 13.23398261 | I187: 14.16759317 | J187: 14.4479156 | K187: 12.18075791 | M187: 14.16274851 | N187: 13.32943557 | O187: 12.18075791
A188: 237 | B188: 7 | C188: mi_10 | D188: 18.12314608 | E188: 15.44438474 | F188: 15.8638392 | G188: 16.83121565 | H188: 13.36438708 | I188: 14.30624559 | J188: 14.58900156 | K188: 12.30160153 | M188: 14.3009889 | N188: 13.46038271 | O188: 12.30160153
A189: 238 | B189: 8 | C189: mi_10 | D189: 18.21048851 | E189: 15.51947662 | F189: 15.94086332 | G189: 16.91267772 | H189: 13.42983912 | I189: 14.37607364 | J189: 14.66013998 | K189: 12.36209729 | M189: 14.37076047 | N189: 13.5262565 | O189: 12.36209729
A190: 239 | B190: 9 | C190: mi_10 | D190: 18.28806587 | E190: 15.58754701 | F190: 16.01046957 | G190: 16.9857589 | H190: 13.49003004 | I190: 14.43988712 | J190: 14.7250233 | K190: 12.41809118 | M190: 14.434405 | N190: 13.58669285 | O190: 12.41809118
A191: 240 | B191: 10 | C191: mi_10 | D191: 18.45467046 | E191: 15.73869822 | F191: 16.16418605 | G191: 17.14518071 | H191: 13.62758673 | I191: 14.58378535 | J191: 14.87076434 | K191: 12.54809903 | M191: 14.57776757 | N191: 13.72446851 | O191: 12.54809903 | Q191: =SUMPRODUCT(M182:M191, array_decile) -> 13.77786955 | R191: =SUMPRODUCT(N182:N191, array_decile) -> 12.96293604 | S191: =SUMPRODUCT(O182:O191, array_decile) -> 11.83970198
A192: 241 | B192: 1 | C192: stroke_10 | D192: 10.16616116 | E192: 8.738103044 | F192: 8.649465596 | G192: 7.517324486 | H192: 7.395708732 | I192: 6.491406034 | J192: 6.305191338 | K192: 5.414366936 | M192: =MMULT(D192:K201,percent_baseline)/100 -> 6.995954279 | N192: =MMULT(D192:K201, percent_s1)/100 -> 6.181100181 | O192: =MMULT(D192:K201, percent_s2)/100 -> 5.414366936
A193: 242 | B193: 2 | C193: stroke_10 | D193: 10.24056045 | E193: 8.805428622 | F193: 8.716330596 | G193: 7.578052429 | H193: 7.45574733 | I193: 6.546113763 | J193: 6.358753476 | K193: 5.462197629 | M193: 7.053226023 | N193: 6.233664355 | O193: 5.462197629
A194: 243 | B194: 3 | C194: stroke_10 | D194: 10.47770975 | E194: 9.013419283 | F194: 8.922471754 | G194: 7.760157274 | H194: 7.635224203 | I194: 6.705765266 | J194: 6.514259515 | K194: 5.597567538 | M194: 7.223353843 | N194: 6.386108071 | O194: 5.597567538
A195: 244 | B195: 4 | C195: stroke_10 | D195: 10.31635467 | E195: 8.86927946 | F195: 8.779440964 | G195: 7.631739913 | H195: 7.508428135 | I195: 6.591361332 | J195: 6.402484358 | K195: 5.498760891 | M195: 7.10271851 | N195: 6.276458471 | O195: 5.498760891
A196: 245 | B196: 5 | C196: stroke_10 | D196: 10.27913869 | E196: 8.835598691 | F196: 8.745992889 | G196: 7.60141056 | H196: 7.478450591 | I196: 6.564108506 | J196: 6.375817301 | K196: 5.475020281 | M196: 7.074165926 | N196: 6.250300869 | O196: 5.475020281
A197: 246 | B197: 6 | C197: stroke_10 | D197: 10.34079945 | E197: 8.893538916 | F197: 8.803672208 | G197: 7.655407025 | H197: 7.532010078 | I197: 6.61413717 | J197: 6.425053088 | K197: 5.520115638 | M197: 7.125599513 | N197: 6.298684554 | O197: 5.520115638
A198: 247 | B198: 7 | C198: stroke_10 | D198: 10.35209419 | E198: 8.897579346 | F198: 8.807296674 | G198: 7.65413193 | H198: 7.53025805 | I198: 6.609179525 | J198: 6.419515341 | K198: 5.512226246 | M198: 7.123109702 | N198: 6.293153624 | O198: 5.512226246
A199: 248 | B199: 8 | C199: stroke_10 | D199: 10.44830158 | E199: 8.983468119 | F199: 8.892515093 | G199: 7.730463975 | H199: 7.605598768 | I199: 6.676915616 | J199: 6.485633173 | K199: 5.57034608 | M199: 7.194614246 | N199: 6.357943484 | O199: 5.57034608
A200: 249 | B200: 9 | C200: stroke_10 | D200: 10.60904989 | E200: 9.124812741 | F200: 9.032625659 | G200: 7.854495786 | H200: 7.727867779 | I200: 6.78585294 | J200: 6.59177522 | K200: 5.662871463 | M200: 7.310532251 | N200: 6.461984175 | O200: 5.662871463
... 61 more rows
